BODY,BODY NAME,DATE,TRANSACTION NUMBER,THEIR REF,CATEGORY,AMOUNT,SUPPLIER NAME,SUPPLIER CODE,EXPENSE AREA,EXPENSE TYPE,EXPENSE CODE
http://statistics.data.gov.uk/id/local-authority/12UE,Huntingdonshire District Council,10/11/2016,198267,H0010003,5,1700,Wood Green Animal Shelters,CR019139,Animal Welfare,Contribution (Paid Out),810
http://statistics.data.gov.uk/id/local-authority/12UE,Huntingdonshire District Council,10/11/2016,198268,H0010004,5,1500,Wood Green Animal Shelters,CR019139,Animal Welfare,Contribution (Paid Out),810
http://statistics.data.gov.uk/id/local-authority/12UE,Huntingdonshire District Council,24/11/2016,199065,186767,5,83.47,Arthur Ibbett Ltd,CR000430,Arboricultural Team,Equipment,500
http://statistics.data.gov.uk/id/local-authority/12UE,Huntingdonshire District Council,10/11/2016,197932,370270,5,104.4,Smi Group,CR423139,Arboricultural Team,Protective Clothing & Uniforms,163
http://statistics.data.gov.uk/id/local-authority/12UE,Huntingdonshire District Council,24/11/2016,199204,57626,5,455.49,Beebys Limited,CR415822,Bus Stations,Electricity,420
http://statistics.data.gov.uk/id/local-authority/12UE,Huntingdonshire District Council,10/11/2016,198716,661225560,5,1256.68,Swalec,CR407130,Bus Stations,Electricity,420
http://statistics.data.gov.uk/id/local-authority/12UE,Huntingdonshire District Council,10/11/2016,197861,1824,5,762,Magenta Coaching Solutions,CR480942,Call Centre,Training,130
http://statistics.data.gov.uk/id/local-authority/12UE,Huntingdonshire District Council,03/11/2016,197395,28494/5106,5,418.66,J Breheny Contractors Ltd,CR000314,Cctv Shared Service,Equipment Maintenance,511
http://statistics.data.gov.uk/id/local-authority/12UE,Huntingdonshire District Council,17/11/2016,198194,54146,5,780,Melsecure International,CR422888,Cctv Shared Service,Equipment Maintenance,511
http://statistics.data.gov.uk/id/local-authority/12UE,Huntingdonshire District Council,03/11/2016,197382,SIN081835,5,"3,600.60",Quadrant Security Group,CR027775,Cctv Shared Service,Equipment Maintenance,511
http://statistics.data.gov.uk/id/local-authority/12UE,Huntingdonshire District Council,03/11/2016,197382,SIN081835,5,2840.83,Quadrant Security Group,CR027775,Cctv Shared Service,Equipment Maintenance,511
http://statistics.data.gov.uk/id/local-authority/12UE,Huntingdonshire District Council,03/11/2016,198610,3700002497,5,1412.4,Uk Power Networks,CR403938,Cctv Shared Service,Equipment Maintenance,511
http://statistics.data.gov.uk/id/local-authority/12UE,Huntingdonshire District Council,17/11/2016,199564,34458,5,4443.02,Videcom Security Ltd,CR422617,Cctv Shared Service,Equipment Maintenance,511
http://statistics.data.gov.uk/id/local-authority/12UE,Huntingdonshire District Council,03/11/2016,197796,SIN081880,5,14340,Quadrant Security Group,CR027775,Cctv Shared Service,Recruitment Costs,120
http://statistics.data.gov.uk/id/local-authority/12UE,Huntingdonshire District Council,10/11/2016,198787,1246907666,5,60,Orange Airtime,CR455799,Cctv Shared Service,Telephone &Mobile Phonecharges,240
http://statistics.data.gov.uk/id/local-authority/12UE,Huntingdonshire District Council,17/11/2016,198811,0900000307-030,5,447.68,Airwave Solutions Ltd,CR423913,Cctv Shared Service,Transmission Lines Rental,767
http://statistics.data.gov.uk/id/local-authority/12UE,Huntingdonshire District Council,17/11/2016,199214,191970,5,3519.18,Cambridge City Council,CR017896,Central Services M Us,Client Contracts,779
http://statistics.data.gov.uk/id/local-authority/12UE,Huntingdonshire District Council,10/11/2016,198787,1246907666,5,12,Orange Airtime,CR455799,Central Services M Us,Telephone &Mobile Phonecharges,240
http://statistics.data.gov.uk/id/local-authority/12UE,Huntingdonshire District Council,24/11/2016,199165,35664297,5,21228,Ernst & Young,CR411950,Chief Executive & Comt,Audit Fees,701
http://statistics.data.gov.uk/id/local-authority/12UE,Huntingdonshire District Council,10/11/2016,199167,2016-00555,5,17996.4,Reinvigoration Ltd,CR423943,Chief Executive & Comt,Consultants,711
http://statistics.data.gov.uk/id/local-authority/12UE,Huntingdonshire District Council,03/11/2016,198631,1603589,5,47179.44,Cambridgeshire County Council,CR006678,Chief Executive & Comt,Pension Increase Act Payments,150
http://statistics.data.gov.uk/id/local-authority/12UE,Huntingdonshire District Council,03/11/2016,197810,16013367,5,1510000,Cambridgeshire County Council,CR017440,Chief Executive & Comt,Pensions,P16
http://statistics.data.gov.uk/id/local-authority/12UE,Huntingdonshire District Council,24/11/2016,198633,8879,5,14976,Solace In Business,CR416525,Chief Executive & Comt,Salary Gross Pay,P01
http://statistics.data.gov.uk/id/local-authority/12UE,Huntingdonshire District Council,03/11/2016,197988,94527308,5,1074,Northgate Arinso,CR416738,Chief Executive & Comt,Software,206
http://statistics.data.gov.uk/id/local-authority/12UE,Huntingdonshire District Council,03/11/2016,197971,94527428,5,2148,Northgate Arinso,CR416738,Chief Executive & Comt,Software,206
http://statistics.data.gov.uk/id/local-authority/12UE,Huntingdonshire District Council,03/11/2016,197984,94527459,5,1200,Northgate Arinso,CR416738,Chief Executive & Comt,Software,206
http://statistics.data.gov.uk/id/local-authority/12UE,Huntingdonshire District Council,17/11/2016,198374,94527943,5,"1,074.00",Northgate Hr Limited,CR416464,Chief Executive & Comt,Software,206
http://statistics.data.gov.uk/id/local-authority/12UE,Huntingdonshire District Council,10/11/2016,199021,C-0002402493,5,"6,085.00",Computershare Vouchers Ltd,CR412205,Child Care Vouchers - Payroll,Deductions Paid To Third Party,26
http://statistics.data.gov.uk/id/local-authority/12UE,Huntingdonshire District Council,03/11/2016,197400,B031016,5,4266.48,Jacobs,CR422350,Council Tax,Bailiffs,703
http://statistics.data.gov.uk/id/local-authority/12UE,Huntingdonshire District Council,24/11/2016,199251,4128,5,"4,539.53",Newlyn Plc,CR409114,Council Tax,Bailiffs,703
http://statistics.data.gov.uk/id/local-authority/12UE,Huntingdonshire District Council,24/11/2016,199270,681598,5,490.8,Callcredit Ltd,CR455548,Council Tax,Enquiries,723
http://statistics.data.gov.uk/id/local-authority/12UE,Huntingdonshire District Council,03/11/2016,198187,IN16PS16005860,5,515.45,Whistl Uk Ltd,CR479965,Council Tax,Postage,231
http://statistics.data.gov.uk/id/local-authority/12UE,Huntingdonshire District Council,03/11/2016,198205,IN16PS16005994,5,3051.42,Whistl Uk Ltd,CR479965,Council Tax,Postage,231
http://statistics.data.gov.uk/id/local-authority/12UE,Huntingdonshire District Council,24/11/2016,199163,IN16PS16006101,5,1328.29,Whistl Uk Ltd,CR424061,Council Tax,Postage,231
http://statistics.data.gov.uk/id/local-authority/12UE,Huntingdonshire District Council,10/11/2016,198969,14-Oct-16,,959.26,Ward Bros (Tottenham) Ltd,CR422800,Countryside,Building Mtce,303
http://statistics.data.gov.uk/id/local-authority/12UE,Huntingdonshire District Council,24/11/2016,199528,14807,5,16.74,Jade Security Services Ltd,CR422256,Countryside,Cash Collection,702
http://statistics.data.gov.uk/id/local-authority/12UE,Huntingdonshire District Council,03/11/2016,198759,210278621,5,330.92,Booker Cash And Carry,CR027611,Countryside,Catering Materials,559
http://statistics.data.gov.uk/id/local-authority/12UE,Huntingdonshire District Council,17/11/2016,199298,2102799129,5,437.54,Booker Cash And Carry,CR027611,Countryside,Catering Materials,559
http://statistics.data.gov.uk/id/local-authority/12UE,Huntingdonshire District Council,10/11/2016,199210,867856,5,323.27,King Bros,CR411339,Countryside,Catering Materials,559
http://statistics.data.gov.uk/id/local-authority/12UE,Huntingdonshire District Council,17/11/2016,198834,738199,5,145.76,Pilgrim Foodservice Ltd,CR455695,Countryside,Catering Materials,559
http://statistics.data.gov.uk/id/local-authority/12UE,Huntingdonshire District Council,17/11/2016,198834,738199,5,123.78,Pilgrim Foodservice Ltd,CR455695,Countryside,Catering Materials,559
http://statistics.data.gov.uk/id/local-authority/12UE,Huntingdonshire District Council,24/11/2016,198796,742774,5,295.34,Pilgrim Foodservice Ltd,CR455695,Countryside,Catering Materials,559
http://statistics.data.gov.uk/id/local-authority/12UE,Huntingdonshire District Council,17/11/2016,199435,65916,5,4873.65,Haven Power Ltd,CR455940,Countryside,Electricity,420
http://statistics.data.gov.uk/id/local-authority/12UE,Huntingdonshire District Council,10/11/2016,198176,W16/1839,5,757.8,Woodberry Of Leamington Spa,CR479458,Countryside,Equipment,500
http://statistics.data.gov.uk/id/local-authority/12UE,Huntingdonshire District Council,24/11/2016,199477,67796,5,808.8,Britannia Fire & Security Ltd,CR410090,Countryside,Fire & Security,450
http://statistics.data.gov.uk/id/local-authority/12UE,Huntingdonshire District Council,10/11/2016,198831,,5,291.16,Banner,CR416014,Countryside,Materials,550
http://statistics.data.gov.uk/id/local-authority/12UE,Huntingdonshire District Council,17/11/2016,199298,2102799129,5,6.35,Booker Cash And Carry,CR027611,Countryside,Materials,550
http://statistics.data.gov.uk/id/local-authority/12UE,Huntingdonshire District Council,10/11/2016,198779,160053,5,744.58,Huntingdon Timber Supplies,CR482513,Countryside,Materials,550
http://statistics.data.gov.uk/id/local-authority/12UE,Huntingdonshire District Council,24/11/2016,199482,160928,5,394.33,Huntingdon Timber Supplies,CR415663,Countryside,Materials,550
http://statistics.data.gov.uk/id/local-authority/12UE,Huntingdonshire District Council,24/11/2016,199227,15942,5,565.74,S S Motors (Fuels)  Ltd,CR400864,Countryside,Materials,550
http://statistics.data.gov.uk/id/local-authority/12UE,Huntingdonshire District Council,10/11/2016,198233,3200180000,5,38.39,Shell Uk Ltd,CR028192,Countryside,Petrol,614
http://statistics.data.gov.uk/id/local-authority/12UE,Huntingdonshire District Council,10/11/2016,199225,EFR,5,575,REDACTED PERSONAL DATA,CR424043,Countryside,Promotions And Exhibitions,743
http://statistics.data.gov.uk/id/local-authority/12UE,Huntingdonshire District Council,24/11/2016,199631,11209,5,1023,R J Warren Ltd,CR453872,Countryside,Sitework,359
http://statistics.data.gov.uk/id/local-authority/12UE,Huntingdonshire District Council,03/11/2016,197391,JBC/28493/5106,5,960,J Breheny Contractors Ltd,CR000314,Cycling,Sitework,359
http://statistics.data.gov.uk/id/local-authority/12UE,Huntingdonshire District Council,24/11/2016,198830,7398/16/631/PA,5,900,Reading Agricultural Consultants,CR404991,Dc Application Processing,Consultants,711
http://statistics.data.gov.uk/id/local-authority/12UE,Huntingdonshire District Council,24/11/2016,199007,7415/16/640/PA,5,720,Reading Agricultural Consultants,CR404991,Dc Application Processing,Consultants,711
http://statistics.data.gov.uk/id/local-authority/12UE,Huntingdonshire District Council,10/11/2016,199169,9965454,5,643.78,Snr Denton,CR453969,Dc Application Processing,Consultants,711
http://statistics.data.gov.uk/id/local-authority/12UE,Huntingdonshire District Council,17/11/2016,199531,9149440,5,1881,Canon Uk Ltd,CR409013,Document Centre,Equipment Maintenance,511
http://statistics.data.gov.uk/id/local-authority/12UE,Huntingdonshire District Council,03/11/2016,198373,40082,5,"1,858.00",Clanpress King'S Lynn Ltd,CR413516,Document Centre,Equipment Maintenance,511
http://statistics.data.gov.uk/id/local-authority/12UE,Huntingdonshire District Council,24/11/2016,198258,1127326880,5,1582.24,Konica Minolta,CR478866,Document Centre,Equipment Maintenance,511
http://statistics.data.gov.uk/id/local-authority/12UE,Huntingdonshire District Council,03/11/2016,197345,969736520,5,315.12,Office Depot Uk Ltd,CR455229,Document Centre,Equipment Maintenance,511
http://statistics.data.gov.uk/id/local-authority/12UE,Huntingdonshire District Council,10/11/2016,199176,11066,5,"7,500.00",Point Zero Solutions Ltd,CR424073,Document Centre,Equipment Maintenance,511
http://statistics.data.gov.uk/id/local-authority/12UE,Huntingdonshire District Council,24/11/2016,199656,24240,5,321.6,Street Process Colour Ltd,CR422705,Document Centre,Materials,550
http://statistics.data.gov.uk/id/local-authority/12UE,Huntingdonshire District Council,03/11/2016,197801,6230434,5,520.8,Antalis Ltd,CR479468,Document Centre,Paper,562
http://statistics.data.gov.uk/id/local-authority/12UE,Huntingdonshire District Council,03/11/2016,198364,6251372,5,179.33,Antalis Ltd,CR479468,Document Centre,Paper,562
http://statistics.data.gov.uk/id/local-authority/12UE,Huntingdonshire District Council,03/11/2016,198364,6251372,5,105.44,Antalis Ltd,CR479468,Document Centre,Paper,562
http://statistics.data.gov.uk/id/local-authority/12UE,Huntingdonshire District Council,03/11/2016,198367,6264001,5,184.32,Antalis Ltd,CR479468,Document Centre,Paper,562
http://statistics.data.gov.uk/id/local-authority/12UE,Huntingdonshire District Council,03/11/2016,198367,6264001,5,41.32,Antalis Ltd,CR479468,Document Centre,Paper,562
http://statistics.data.gov.uk/id/local-authority/12UE,Huntingdonshire District Council,03/11/2016,198367,6264001,5,56.11,Antalis Ltd,CR479468,Document Centre,Paper,562
http://statistics.data.gov.uk/id/local-authority/12UE,Huntingdonshire District Council,24/11/2016,199198,6296721,5,61.44,Antalis Ltd,CR479468,Document Centre,Paper,562
http://statistics.data.gov.uk/id/local-authority/12UE,Huntingdonshire District Council,24/11/2016,199198,6296721,5,520.8,Antalis Ltd,CR479468,Document Centre,Paper,562
http://statistics.data.gov.uk/id/local-authority/12UE,Huntingdonshire District Council,03/11/2016,198182,9053088355,5,819.61,Royal Mail,CR027083,Document Centre,Postage,231
http://statistics.data.gov.uk/id/local-authority/12UE,Huntingdonshire District Council,17/11/2016,199162,9053172691,5,797.67,Royal Mail,CR027083,Document Centre,Postage,231
http://statistics.data.gov.uk/id/local-authority/12UE,Huntingdonshire District Council,03/11/2016,198188,IN16PS16005725,5,1294.03,Whistl Uk Ltd,CR479965,Document Centre,Postage,231
http://statistics.data.gov.uk/id/local-authority/12UE,Huntingdonshire District Council,03/11/2016,198187,IN16PS16005860,5,838.3,Whistl Uk Ltd,CR479965,Document Centre,Postage,231
http://statistics.data.gov.uk/id/local-authority/12UE,Huntingdonshire District Council,03/11/2016,198205,IN16PS16005994,5,"1,052.45",Whistl Uk Ltd,CR479965,Document Centre,Postage,231
http://statistics.data.gov.uk/id/local-authority/12UE,Huntingdonshire District Council,24/11/2016,199163,IN16PS16006101,5,854.61,Whistl Uk Ltd,CR424061,Document Centre,Postage,231
http://statistics.data.gov.uk/id/local-authority/12UE,Huntingdonshire District Council,24/11/2016,198971,40150,5,3926.4,Clanpress King'S Lynn Ltd,CR413516,Domestic Refuse,Advertising/Promoting Services,255
http://statistics.data.gov.uk/id/local-authority/12UE,Huntingdonshire District Council,10/11/2016,197813,28937,,1374,The Creative Company,CR407087,Domestic Refuse,Advertising/Promoting Services,255
http://statistics.data.gov.uk/id/local-authority/12UE,Huntingdonshire District Council,10/11/2016,603580,10700787,5,5777,Cambridgeshire County Council,CR006678,Domestic Refuse,Contribution (Paid Out),810
http://statistics.data.gov.uk/id/local-authority/12UE,Huntingdonshire District Council,03/11/2016,198313,102048,5,294,Barton Petroleum,CR409205,Domestic Refuse,Diesel,615
http://statistics.data.gov.uk/id/local-authority/12UE,Huntingdonshire District Council,03/11/2016,197947,IN0550615,5,3214.9,Staffline Group,CR416827,Domestic Refuse,Hired Staff,100
http://statistics.data.gov.uk/id/local-authority/12UE,Huntingdonshire District Council,03/11/2016,197937,IN0550616,5,2248.91,Staffline Group,CR416827,Domestic Refuse,Hired Staff,100
http://statistics.data.gov.uk/id/local-authority/12UE,Huntingdonshire District Council,24/11/2016,199245,IN0552894,5,3410.7,Staffline Group,CR416827,Domestic Refuse,Hired Staff,100
http://statistics.data.gov.uk/id/local-authority/12UE,Huntingdonshire District Council,24/11/2016,199238,IN0552895,5,3278.57,Staffline Group,CR416827,Domestic Refuse,Hired Staff,100
http://statistics.data.gov.uk/id/local-authority/12UE,Huntingdonshire District Council,24/11/2016,199246,IN0554055,5,3209.05,Staffline Group,CR416827,Domestic Refuse,Hired Staff,100
http://statistics.data.gov.uk/id/local-authority/12UE,Huntingdonshire District Council,24/11/2016,199239,IN0554056,5,1517.2,Staffline Group,CR416827,Domestic Refuse,Hired Staff,100
http://statistics.data.gov.uk/id/local-authority/12UE,Huntingdonshire District Council,24/11/2016,199247,IN0555994,5,3961.8,Staffline Group,CR416827,Domestic Refuse,Hired Staff,100
http://statistics.data.gov.uk/id/local-authority/12UE,Huntingdonshire District Council,24/11/2016,199240,IN0555995,5,563.44,Staffline Group,CR416827,Domestic Refuse,Hired Staff,100
http://statistics.data.gov.uk/id/local-authority/12UE,Huntingdonshire District Council,24/11/2016,199241,IN0555996,5,"1,358.08",Staffline Group,CR416827,Domestic Refuse,Hired Staff,100
http://statistics.data.gov.uk/id/local-authority/12UE,Huntingdonshire District Council,10/11/2016,197966,SINV-101183,5,4795.32,Gelpack Excelsior Limited,CR002966,Domestic Refuse,Refuse Sacks,552
http://statistics.data.gov.uk/id/local-authority/12UE,Huntingdonshire District Council,10/11/2016,197967,SINV-101268,5,4605.62,Gelpack Excelsior Limited,CR002966,Domestic Refuse,Refuse Sacks,552
http://statistics.data.gov.uk/id/local-authority/12UE,Huntingdonshire District Council,17/11/2016,198195,SINV-101308,5,1522.56,Gelpack Excelsior Limited,CR002966,Domestic Refuse,Refuse Sacks,552
http://statistics.data.gov.uk/id/local-authority/12UE,Huntingdonshire District Council,10/11/2016,198209,93851,5,4036.51,Bandvulc Truck Tyres,CR406810,Domestic Refuse,Tyres,630
http://statistics.data.gov.uk/id/local-authority/12UE,Huntingdonshire District Council,24/11/2016,199895,95074,5,4068.34,Bandvulc Truck Tyres,CR406810,Domestic Refuse,Tyres,630
http://statistics.data.gov.uk/id/local-authority/12UE,Huntingdonshire District Council,10/11/2016,198286,1610/75178,5,408,Gullivers Truck Hire Ltd,CR477663,Domestic Refuse,Vehicle Hire,607
http://statistics.data.gov.uk/id/local-authority/12UE,Huntingdonshire District Council,10/11/2016,198287,1610/77257,5,408,Gullivers Truck Hire Ltd,CR477663,Domestic Refuse,Vehicle Hire,607
http://statistics.data.gov.uk/id/local-authority/12UE,Huntingdonshire District Council,17/11/2016,199131,1610/79744,5,408,Gullivers Truck Hire Ltd,CR477663,Domestic Refuse,Vehicle Hire,607
http://statistics.data.gov.uk/id/local-authority/12UE,Huntingdonshire District Council,17/11/2016,199132,1610/79745,5,"1,116.00",Gullivers Truck Hire Ltd,CR477663,Domestic Refuse,Vehicle Hire,607
http://statistics.data.gov.uk/id/local-authority/12UE,Huntingdonshire District Council,24/11/2016,199133,1610/83745,5,408,Gullivers Truck Hire Ltd,CR477663,Domestic Refuse,Vehicle Hire,607
http://statistics.data.gov.uk/id/local-authority/12UE,Huntingdonshire District Council,24/11/2016,199134,1610/83746,5,876,Gullivers Truck Hire Ltd,CR477663,Domestic Refuse,Vehicle Hire,607
http://statistics.data.gov.uk/id/local-authority/12UE,Huntingdonshire District Council,03/11/2016,197963,268898I,5,435.38,A C Commercials,CR000141,Domestic Refuse,Vehicle Oil & Lubricants,626
http://statistics.data.gov.uk/id/local-authority/12UE,Huntingdonshire District Council,24/11/2016,199124,290735,5,1417.42,Dennis Eagle Ltd,CR000200,Domestic Refuse,Vehicle Parts & Fittings,625
http://statistics.data.gov.uk/id/local-authority/12UE,Huntingdonshire District Council,24/11/2016,199123,291109,5,"1,650.66",Dennis Eagle Ltd,CR000200,Domestic Refuse,Vehicle Parts & Fittings,625
http://statistics.data.gov.uk/id/local-authority/12UE,Huntingdonshire District Council,24/11/2016,199900,291951,5,2734.21,Dennis Eagle Ltd,CR000200,Domestic Refuse,Vehicle Parts & Fittings,625
http://statistics.data.gov.uk/id/local-authority/12UE,Huntingdonshire District Council,03/11/2016,197455,DE10986322,5,364.84,Dennis Eagle Ltd,CR000200,Domestic Refuse,Vehicle Parts & Fittings,625
http://statistics.data.gov.uk/id/local-authority/12UE,Huntingdonshire District Council,03/11/2016,197568,DE10988088,5,905.34,Dennis Eagle Ltd,CR000200,Domestic Refuse,Vehicle Parts & Fittings,625
http://statistics.data.gov.uk/id/local-authority/12UE,Huntingdonshire District Council,24/11/2016,198296,DE10989865,5,270.07,Dennis Eagle Ltd,CR000200,Domestic Refuse,Vehicle Parts & Fittings,625
http://statistics.data.gov.uk/id/local-authority/12UE,Huntingdonshire District Council,24/11/2016,199118,DE10991284,5,352.87,Dennis Eagle Ltd,CR000200,Domestic Refuse,Vehicle Parts & Fittings,625
http://statistics.data.gov.uk/id/local-authority/12UE,Huntingdonshire District Council,24/11/2016,199126,DE10992864,5,891.89,Dennis Eagle Ltd,CR000200,Domestic Refuse,Vehicle Parts & Fittings,625
http://statistics.data.gov.uk/id/local-authority/12UE,Huntingdonshire District Council,24/11/2016,199128,DE10993262,5,600.11,Dennis Eagle Ltd,CR000200,Domestic Refuse,Vehicle Parts & Fittings,625
http://statistics.data.gov.uk/id/local-authority/12UE,Huntingdonshire District Council,24/11/2016,199902,DE10995293,5,202.46,Dennis Eagle Ltd,CR000200,Domestic Refuse,Vehicle Parts & Fittings,625
http://statistics.data.gov.uk/id/local-authority/12UE,Huntingdonshire District Council,10/11/2016,198285,15992,,376.86,Poweram Hydraulics,CR127309,Domestic Refuse,Vehicle Parts & Fittings,625
http://statistics.data.gov.uk/id/local-authority/12UE,Huntingdonshire District Council,24/11/2016,198840,101709,5,356.1,Red Forge Ltd,CR405690,Domestic Refuse,Vehicle Parts & Fittings,625
http://statistics.data.gov.uk/id/local-authority/12UE,Huntingdonshire District Council,24/11/2016,197499,96332706,5,309.22,Terberg Matec Uk Ltd,CR402183,Domestic Refuse,Vehicle Parts & Fittings,625
http://statistics.data.gov.uk/id/local-authority/12UE,Huntingdonshire District Council,24/11/2016,199219,96332891,5,367.56,Terberg Matec Uk Ltd,CR402183,Domestic Refuse,Vehicle Parts & Fittings,625
http://statistics.data.gov.uk/id/local-authority/12UE,Huntingdonshire District Council,24/11/2016,199222,96333363,5,438.79,Terberg Matec Uk Ltd,CR402183,Domestic Refuse,Vehicle Parts & Fittings,625
http://statistics.data.gov.uk/id/local-authority/12UE,Huntingdonshire District Council,24/11/2016,199223,96333639,5,513.12,Terberg Matec Uk Ltd,CR402183,Domestic Refuse,Vehicle Parts & Fittings,625
http://statistics.data.gov.uk/id/local-authority/12UE,Huntingdonshire District Council,03/11/2016,198245,30613,5,"1,349.38",Hi-Spec Facilities Services Plc,CR423413,E F H And Depots,Building Cleaning,440
http://statistics.data.gov.uk/id/local-authority/12UE,Huntingdonshire District Council,03/11/2016,198208,30814,5,1349.38,Hi-Spec Facilities Services Plc,CR423413,E F H And Depots,Building Cleaning,440
http://statistics.data.gov.uk/id/local-authority/12UE,Huntingdonshire District Council,17/11/2016,199439,65924,5,4019.73,Haven Power Ltd,CR455940,E F H And Depots,Electricity,420
http://statistics.data.gov.uk/id/local-authority/12UE,Huntingdonshire District Council,17/11/2016,199636,12489089940,5,278.39,E-On Energy,CR416430,E F H And Depots,Gas,421
http://statistics.data.gov.uk/id/local-authority/12UE,Huntingdonshire District Council,24/11/2016,198986,6762,5,816,Cambridge Door Services,CR415341,E F H And Depots,Plant & Equipment Maintenance,380
http://statistics.data.gov.uk/id/local-authority/12UE,Huntingdonshire District Council,10/11/2016,198380,CD200018448,5,52.45,Integrated Water Services Ltd,CR452140,E F H And Depots,Water & Sewerage,432
http://statistics.data.gov.uk/id/local-authority/12UE,Huntingdonshire District Council,24/11/2016,199259,CD200023288,5,52.45,Integrated Water Services Ltd,CR452140,E F H And Depots,Water & Sewerage,432
http://statistics.data.gov.uk/id/local-authority/12UE,Huntingdonshire District Council,24/11/2016,198813,15860,5,477.6,Victoirepress,CR404724,Elections,Printing (External),220
http://statistics.data.gov.uk/id/local-authority/12UE,Huntingdonshire District Council,17/11/2016,603373,AHR9,6,6706.9,Electoral Reform Services,CR479981,Electoral Registration,Management Charge,733
http://statistics.data.gov.uk/id/local-authority/12UE,Huntingdonshire District Council,03/11/2016,198182,9053088355,5,529.81,Royal Mail,CR027083,Electoral Registration,Postage,231
http://statistics.data.gov.uk/id/local-authority/12UE,Huntingdonshire District Council,17/11/2016,199162,9053172691,5,1356.98,Royal Mail,CR027083,Electoral Registration,Postage,231
http://statistics.data.gov.uk/id/local-authority/12UE,Huntingdonshire District Council,17/11/2016,199159,9053182536,5,1272.59,Royal Mail,CR027083,Electoral Registration,Postage,231
http://statistics.data.gov.uk/id/local-authority/12UE,Huntingdonshire District Council,03/11/2016,198188,IN16PS16005725,5,573.07,Whistl Uk Ltd,CR479965,Electoral Registration,Postage,231
http://statistics.data.gov.uk/id/local-authority/12UE,Huntingdonshire District Council,03/11/2016,198187,IN16PS16005860,5,509.59,Whistl Uk Ltd,CR479965,Electoral Registration,Postage,231
http://statistics.data.gov.uk/id/local-authority/12UE,Huntingdonshire District Council,03/11/2016,198205,IN16PS16005994,5,389.28,Whistl Uk Ltd,CR479965,Electoral Registration,Postage,231
http://statistics.data.gov.uk/id/local-authority/12UE,Huntingdonshire District Council,24/11/2016,199163,IN16PS16006101,5,222.2,Whistl Uk Ltd,CR424061,Electoral Registration,Postage,231
http://statistics.data.gov.uk/id/local-authority/12UE,Huntingdonshire District Council,17/11/2016,198812,3056,5,3106.43,Sci Print Limited,CR416581,Electoral Registration,Printing (External),220
http://statistics.data.gov.uk/id/local-authority/12UE,Huntingdonshire District Council,24/11/2016,198972,3007,5,156,K & M Lighting Services Ltd,CR455166,Environmental Imps Mgt,Sitework,359
http://statistics.data.gov.uk/id/local-authority/12UE,Huntingdonshire District Council,24/11/2016,198972,3007,5,156,K & M Lighting Services Ltd,CR455166,Environmental Imps Mgt,Sitework,359
http://statistics.data.gov.uk/id/local-authority/12UE,Huntingdonshire District Council,24/11/2016,198972,3007,5,108,K & M Lighting Services Ltd,CR455166,Environmental Imps Mgt,Sitework,359
http://statistics.data.gov.uk/id/local-authority/12UE,Huntingdonshire District Council,24/11/2016,198972,3007,5,78,K & M Lighting Services Ltd,CR455166,Environmental Imps Mgt,Sitework,359
http://statistics.data.gov.uk/id/local-authority/12UE,Huntingdonshire District Council,17/11/2016,199624,94571589/3000,5,1570.8,Bsi,CR40082,Environmental Management,Corporate Subscriptions,754
http://statistics.data.gov.uk/id/local-authority/12UE,Huntingdonshire District Council,10/11/2016,198307,192516,5,2194.97,Chevin Fleet Solutions,CR477454,Environmental Management,Licences,730
http://statistics.data.gov.uk/id/local-authority/12UE,Huntingdonshire District Council,17/11/2016,198235,3200179978,5,211.2,Shell Uk Ltd,CR028192,Environmental Management,Licences,730
http://statistics.data.gov.uk/id/local-authority/12UE,Huntingdonshire District Council,10/11/2016,198233,3200180000,5,283.2,Shell Uk Ltd,CR028192,Environmental Management,Licences,730
http://statistics.data.gov.uk/id/local-authority/12UE,Huntingdonshire District Council,10/11/2016,198202,INV08946,5,257.47,Uvenco,CR482479,Environmental Management,Service Charges,412
http://statistics.data.gov.uk/id/local-authority/12UE,Huntingdonshire District Council,10/11/2016,198203,INV09179,5,357.64,Uvenco,CR482479,Environmental Management,Service Charges,412
http://statistics.data.gov.uk/id/local-authority/12UE,Huntingdonshire District Council,10/11/2016,198787,1246907666,5,98.4,Orange Airtime,CR455799,Environmental Management,Telephone &Mobile Phonecharges,240
http://statistics.data.gov.uk/id/local-authority/12UE,Huntingdonshire District Council,17/11/2016,199488,90217573,5,840,Freeths  Llp,CR480787,Estates Properties Capital,Legal Fees,729
http://statistics.data.gov.uk/id/local-authority/12UE,Huntingdonshire District Council,24/11/2016,199270,681598,5,85.2,Callcredit Ltd,CR455548,Financial Services Mus,Enquiries,723
http://statistics.data.gov.uk/id/local-authority/12UE,Huntingdonshire District Council,10/11/2016,198252,34026,5,488.88,Meyer Scott Recruitment Limited,CR422369,Financial Services Mus,Hired Staff,100
http://statistics.data.gov.uk/id/local-authority/12UE,Huntingdonshire District Council,17/11/2016,199166,34061,5,488.88,Meyer Scott Recruitment Limited,CR422369,Financial Services Mus,Hired Staff,100
http://statistics.data.gov.uk/id/local-authority/12UE,Huntingdonshire District Council,03/11/2016,198632,1006990913,5,9196.34,Hays,CR423917,Financial Services Mus,Recruitment Costs,120
http://statistics.data.gov.uk/id/local-authority/12UE,Huntingdonshire District Council,10/11/2016,198320,300144230,5,354,Freight Transport Association,CR003104,Fleet Management,Conferences,137
http://statistics.data.gov.uk/id/local-authority/12UE,Huntingdonshire District Council,10/11/2016,198319,300144343,5,318,Freight Transport Association,CR003104,Fleet Management,Conferences,137
http://statistics.data.gov.uk/id/local-authority/12UE,Huntingdonshire District Council,10/11/2016,198233,3200180000,5,30.86,Shell Uk Ltd,CR028192,Fleet Management,Diesel,615
http://statistics.data.gov.uk/id/local-authority/12UE,Huntingdonshire District Council,24/11/2016,199067,SN2519971,5,477,Berendsen,CR478298,Fleet Management,Materials,550
http://statistics.data.gov.uk/id/local-authority/12UE,Huntingdonshire District Council,03/11/2016,197963,268898I,5,24.88,A C Commercials,CR000141,Fleet Management,Vehicle Oil & Lubricants,626
http://statistics.data.gov.uk/id/local-authority/12UE,Huntingdonshire District Council,10/11/2016,199064,9704,5,640.93,G&C Coachworks Ltd,CR455755,Fleet Management,Vehicle Parts & Fittings,625
http://statistics.data.gov.uk/id/local-authority/12UE,Huntingdonshire District Council,17/11/2016,198295,64297,5,386.39,Hq Forklifts Ltd,CR404076,Fleet Management,Vehicle Parts & Fittings,625
http://statistics.data.gov.uk/id/local-authority/12UE,Huntingdonshire District Council,10/11/2016,198233,3200180000,5,215,Shell Uk Ltd,CR028192,Grounds Maintenance,Diesel,615
http://statistics.data.gov.uk/id/local-authority/12UE,Huntingdonshire District Council,24/11/2016,199065,186767,5,178.92,Arthur Ibbett Ltd,CR000430,Grounds Maintenance,Equipment,500
http://statistics.data.gov.uk/id/local-authority/12UE,Huntingdonshire District Council,17/11/2016,199573,I4903 TO 31 OCT,5,287.6,Zurich Municipal,CR003638,Grounds Maintenance,Insurance Excess,797
http://statistics.data.gov.uk/id/local-authority/12UE,Huntingdonshire District Council,24/11/2016,199138,160822,5,342.96,Huntingdon Timber Supplies,CR482513,Grounds Maintenance,Materials,550
http://statistics.data.gov.uk/id/local-authority/12UE,Huntingdonshire District Council,17/11/2016,198235,3200179978,5,204.91,Shell Uk Ltd,CR028192,Grounds Maintenance,Petrol,614
http://statistics.data.gov.uk/id/local-authority/12UE,Huntingdonshire District Council,10/11/2016,198233,3200180000,5,58.25,Shell Uk Ltd,CR028192,Grounds Maintenance,Petrol,614
http://statistics.data.gov.uk/id/local-authority/12UE,Huntingdonshire District Council,03/11/2016,198800,11232,5,1328.16,Plantscape Ltd,CR415993,Grounds Maintenance,Plants And Seeds,556
http://statistics.data.gov.uk/id/local-authority/12UE,Huntingdonshire District Council,17/11/2016,199603,6997,,26700,Dobson Uk Llp,CR423450,Grounds Maintenance,Subcontractors,777
http://statistics.data.gov.uk/id/local-authority/12UE,Huntingdonshire District Council,24/11/2016,199474,13090,5,324,Ian'S Tyre & Exhaust Centre,CR405836,Grounds Maintenance,Tyres,630
http://statistics.data.gov.uk/id/local-authority/12UE,Huntingdonshire District Council,17/11/2016,198280,1645261,5,756,Days Contract Hire,CR417030,Grounds Maintenance,Vehicle Hire,607
http://statistics.data.gov.uk/id/local-authority/12UE,Huntingdonshire District Council,03/11/2016,197963,268898I,5,286.1,A C Commercials,CR000141,Grounds Maintenance,Vehicle Oil & Lubricants,626
http://statistics.data.gov.uk/id/local-authority/12UE,Huntingdonshire District Council,24/11/2016,199130,186753,5,534.16,Arthur Ibbett Ltd,CR000430,Grounds Maintenance,Vehicle Parts & Fittings,625
http://statistics.data.gov.uk/id/local-authority/12UE,Huntingdonshire District Council,24/11/2016,199119,788206,5,1057.55,Ernest Doe & Sons,CR000261,Grounds Maintenance,Vehicle Parts & Fittings,625
http://statistics.data.gov.uk/id/local-authority/12UE,Huntingdonshire District Council,24/11/2016,198959,8036604,5,363.11,Reesink Turfcare Uk Ltd,CR098282,Grounds Maintenance,Vehicle Parts & Fittings,625
http://statistics.data.gov.uk/id/local-authority/12UE,Huntingdonshire District Council,17/11/2016,199137,10701576,5,275.1,Cambridgeshire County Council,CR006678,Grounds Maintenance,Waste Disposal,763
http://statistics.data.gov.uk/id/local-authority/12UE,Huntingdonshire District Council,03/11/2016,198657,384/611,,315,Jaz Yorks Ltd,CR160753,Homelessness Management,Bed & Breakfast Payment,818
http://statistics.data.gov.uk/id/local-authority/12UE,Huntingdonshire District Council,03/11/2016,198663,384/612,,315,Jaz Yorks Ltd,CR160753,Homelessness Management,Bed & Breakfast Payment,818
http://statistics.data.gov.uk/id/local-authority/12UE,Huntingdonshire District Council,17/11/2016,199659,384/613,,385,Jaz Yorks Ltd,CR160753,Homelessness Management,Bed & Breakfast Payment,818
http://statistics.data.gov.uk/id/local-authority/12UE,Huntingdonshire District Council,03/11/2016,198651,384/614,,525,Jaz Yorks Ltd,CR160753,Homelessness Management,Bed & Breakfast Payment,818
http://statistics.data.gov.uk/id/local-authority/12UE,Huntingdonshire District Council,03/11/2016,198655,384/615,,525,Jaz Yorks Ltd,CR160753,Homelessness Management,Bed & Breakfast Payment,818
http://statistics.data.gov.uk/id/local-authority/12UE,Huntingdonshire District Council,03/11/2016,198656,384/616,,315,Jaz Yorks Ltd,CR160753,Homelessness Management,Bed & Breakfast Payment,818
http://statistics.data.gov.uk/id/local-authority/12UE,Huntingdonshire District Council,03/11/2016,198661,384/617,,315,Jaz Yorks Ltd,CR160753,Homelessness Management,Bed & Breakfast Payment,818
http://statistics.data.gov.uk/id/local-authority/12UE,Huntingdonshire District Council,17/11/2016,199660,384/618,,385,Jaz Yorks Ltd,CR160753,Homelessness Management,Bed & Breakfast Payment,818
http://statistics.data.gov.uk/id/local-authority/12UE,Huntingdonshire District Council,03/11/2016,198642,384/619,,525,Jaz Yorks Ltd,CR160753,Homelessness Management,Bed & Breakfast Payment,818
http://statistics.data.gov.uk/id/local-authority/12UE,Huntingdonshire District Council,03/11/2016,198643,384/619,,525,Jaz Yorks Ltd,CR160753,Homelessness Management,Bed & Breakfast Payment,818
http://statistics.data.gov.uk/id/local-authority/12UE,Huntingdonshire District Council,03/11/2016,198654,384/620,,525,Jaz Yorks Ltd,CR160753,Homelessness Management,Bed & Breakfast Payment,818
http://statistics.data.gov.uk/id/local-authority/12UE,Huntingdonshire District Council,03/11/2016,198660,384/622,,315,Jaz Yorks Ltd,CR160753,Homelessness Management,Bed & Breakfast Payment,818
http://statistics.data.gov.uk/id/local-authority/12UE,Huntingdonshire District Council,17/11/2016,199661,384/623,,385,Jaz Yorks Ltd,CR160753,Homelessness Management,Bed & Breakfast Payment,818
http://statistics.data.gov.uk/id/local-authority/12UE,Huntingdonshire District Council,03/11/2016,198641,384/624,,525,Jaz Yorks Ltd,CR160753,Homelessness Management,Bed & Breakfast Payment,818
http://statistics.data.gov.uk/id/local-authority/12UE,Huntingdonshire District Council,03/11/2016,198653,384/625,,525,Jaz Yorks Ltd,CR160753,Homelessness Management,Bed & Breakfast Payment,818
http://statistics.data.gov.uk/id/local-authority/12UE,Huntingdonshire District Council,03/11/2016,198659,384/627,,315,Jaz Yorks Ltd,CR160753,Homelessness Management,Bed & Breakfast Payment,818
http://statistics.data.gov.uk/id/local-authority/12UE,Huntingdonshire District Council,17/11/2016,199663,384/628,,385,Jaz Yorks Ltd,CR160753,Homelessness Management,Bed & Breakfast Payment,818
http://statistics.data.gov.uk/id/local-authority/12UE,Huntingdonshire District Council,03/11/2016,198652,384/630,,525,Jaz Yorks Ltd,CR160753,Homelessness Management,Bed & Breakfast Payment,818
http://statistics.data.gov.uk/id/local-authority/12UE,Huntingdonshire District Council,17/11/2016,199589,384/631,,315,Jaz Yorks Ltd,CR160753,Homelessness Management,Bed & Breakfast Payment,818
http://statistics.data.gov.uk/id/local-authority/12UE,Huntingdonshire District Council,17/11/2016,199586,384/633,,525,Jaz Yorks Ltd,CR160753,Homelessness Management,Bed & Breakfast Payment,818
http://statistics.data.gov.uk/id/local-authority/12UE,Huntingdonshire District Council,17/11/2016,199582,384/634,,450,Jaz Yorks Ltd,CR160753,Homelessness Management,Bed & Breakfast Payment,818
http://statistics.data.gov.uk/id/local-authority/12UE,Huntingdonshire District Council,17/11/2016,199588,384/635,,315,Jaz Yorks Ltd,CR160753,Homelessness Management,Bed & Breakfast Payment,818
http://statistics.data.gov.uk/id/local-authority/12UE,Huntingdonshire District Council,17/11/2016,199584,384/636,,525,Jaz Yorks Ltd,CR160753,Homelessness Management,Bed & Breakfast Payment,818
http://statistics.data.gov.uk/id/local-authority/12UE,Huntingdonshire District Council,17/11/2016,199504,40/2016,5,1190,The Station Hotel,CR453752,Homelessness Management,Bed & Breakfast Payment,818
http://statistics.data.gov.uk/id/local-authority/12UE,Huntingdonshire District Council,24/11/2016,199990,41/2016,5,1190,The Station Hotel,CR453752,Homelessness Management,Bed & Breakfast Payment,818
http://statistics.data.gov.uk/id/local-authority/12UE,Huntingdonshire District Council,10/11/2016,199179,EC046,5,2760,Ukos Projects Ltd,CR423164,Homelessness Management,Bed & Breakfast Payment,818
http://statistics.data.gov.uk/id/local-authority/12UE,Huntingdonshire District Council,17/11/2016,199505,EC047,5,3360,Ukos Projects Ltd,CR423164,Homelessness Management,Bed & Breakfast Payment,818
http://statistics.data.gov.uk/id/local-authority/12UE,Huntingdonshire District Council,24/11/2016,199943,19437,5,1574.95,King Street Housing Society,CR409301,Homelessness Management,Management Charge,733
http://statistics.data.gov.uk/id/local-authority/12UE,Huntingdonshire District Council,03/11/2016,198736,REDACTED PERSONAL DATA,5,816,Alexanders,CR415843,Homelessness Management,Removal/Storage,750
http://statistics.data.gov.uk/id/local-authority/12UE,Huntingdonshire District Council,10/11/2016,199236,REDACTED PERSONAL DATA,5,312,Alexanders,CR415843,Homelessness Management,Removal/Storage,750
http://statistics.data.gov.uk/id/local-authority/12UE,Huntingdonshire District Council,24/11/2016,199270,681598,5,25.2,Callcredit Ltd,CR455548,Housing  Benefits Admin,Enquiries,723
http://statistics.data.gov.uk/id/local-authority/12UE,Huntingdonshire District Council,03/11/2016,198385,937377,5,883.2,Morgan Hunt Public Uk Ltd,CR415693,Housing  Benefits Admin,Hired Staff,100
http://statistics.data.gov.uk/id/local-authority/12UE,Huntingdonshire District Council,03/11/2016,198749,938857,5,1014.3,Morgan Hunt Public Uk Ltd,CR415693,Housing  Benefits Admin,Hired Staff,100
http://statistics.data.gov.uk/id/local-authority/12UE,Huntingdonshire District Council,17/11/2016,199273,940288,5,1007.4,Morgan Hunt Public Uk Ltd,CR415693,Housing  Benefits Admin,Hired Staff,100
http://statistics.data.gov.uk/id/local-authority/12UE,Huntingdonshire District Council,17/11/2016,199274,940289,5,771.44,Morgan Hunt Public Uk Ltd,CR415693,Housing  Benefits Admin,Hired Staff,100
http://statistics.data.gov.uk/id/local-authority/12UE,Huntingdonshire District Council,24/11/2016,199817,941766,5,1028.1,Morgan Hunt Public Uk Ltd,CR415693,Housing  Benefits Admin,Hired Staff,100
http://statistics.data.gov.uk/id/local-authority/12UE,Huntingdonshire District Council,24/11/2016,199818,941767,5,768.95,Morgan Hunt Public Uk Ltd,CR415693,Housing  Benefits Admin,Hired Staff,100
http://statistics.data.gov.uk/id/local-authority/12UE,Huntingdonshire District Council,10/11/2016,198981,DINV/218368,5,12000,South Cambridgeshire District Council,CR405127,Housing  Benefits Admin,Hired Staff,100
http://statistics.data.gov.uk/id/local-authority/12UE,Huntingdonshire District Council,03/11/2016,197397,3229889,5,949.8,Venn Group Recruitment,CR415403,Housing  Benefits Admin,Hired Staff,100
http://statistics.data.gov.uk/id/local-authority/12UE,Huntingdonshire District Council,03/11/2016,198188,IN16PS16005725,5,213.86,Whistl Uk Ltd,CR479965,Housing  Benefits Admin,Postage,231
http://statistics.data.gov.uk/id/local-authority/12UE,Huntingdonshire District Council,03/11/2016,198187,IN16PS16005860,5,224.72,Whistl Uk Ltd,CR479965,Housing  Benefits Admin,Postage,231
http://statistics.data.gov.uk/id/local-authority/12UE,Huntingdonshire District Council,10/11/2016,198016,91378136,5,1200,Northgatepublic Services Uk Ltd,CR028925,Housing  Benefits Admin,Software,206
http://statistics.data.gov.uk/id/local-authority/12UE,Huntingdonshire District Council,17/11/2016,199616,120812,5,7161,Peterborough City Council,CR000619,Housing Management Units,Hired Staff,100
http://statistics.data.gov.uk/id/local-authority/12UE,Huntingdonshire District Council,24/11/2016,199260,DCHH/00000426,5,-375.89,Luminus Homes,CR401276,Housing Services Other,Building Mtce,303
http://statistics.data.gov.uk/id/local-authority/12UE,Huntingdonshire District Council,24/11/2016,199142,DIHH/00002990,5,1154.96,Luminus Homes,CR401276,Housing Services Other,Building Mtce,303
http://statistics.data.gov.uk/id/local-authority/12UE,Huntingdonshire District Council,24/11/2016,199143,DIHH/00002991,5,373.78,Luminus Homes,CR401276,Housing Services Other,Building Mtce,303
http://statistics.data.gov.uk/id/local-authority/12UE,Huntingdonshire District Council,10/11/2016,199021,C-0002402493,5,255.58,Computershare Vouchers Ltd,CR412205,Human Resources,Childcare Admin Vouchers,144
http://statistics.data.gov.uk/id/local-authority/12UE,Huntingdonshire District Council,03/11/2016,197672,10699412,5,147480,Cambridgeshire County Council,CR006678,Human Resources,Client Contracts,779
http://statistics.data.gov.uk/id/local-authority/12UE,Huntingdonshire District Council,10/11/2016,199020,LTHR29,,2362.5,Willow Hr Limited,CR422016,Human Resources,Consultants,711
http://statistics.data.gov.uk/id/local-authority/12UE,Huntingdonshire District Council,17/11/2016,199140,94528248,5,"2,148.00",Northgate Arinso,CR416738,Human Resources,Software,206
http://statistics.data.gov.uk/id/local-authority/12UE,Huntingdonshire District Council,24/11/2016,199141,94528453,5,852,Northgate Arinso,CR416738,Human Resources,Software,206
http://statistics.data.gov.uk/id/local-authority/12UE,Huntingdonshire District Council,10/11/2016,603181,19896,5,2049.94,Aea Bookings,CR416382,Human Resources,Training,130
http://statistics.data.gov.uk/id/local-authority/12UE,Huntingdonshire District Council,17/11/2016,198763,6159,5,"1,194.00",Alistair Bromhead Ltd,CR424063,Human Resources,Training,130
http://statistics.data.gov.uk/id/local-authority/12UE,Huntingdonshire District Council,10/11/2016,199182,131410404,5,115,C-Way Driver Training,CR423428,Human Resources,Training,130
http://statistics.data.gov.uk/id/local-authority/12UE,Huntingdonshire District Council,10/11/2016,199182,131410404,5,1020,C-Way Driver Training,CR423428,Human Resources,Training,130
http://statistics.data.gov.uk/id/local-authority/12UE,Huntingdonshire District Council,24/11/2016,200032,9193649,6,342,East Of England Lga,CR422620,Human Resources,Training,130
http://statistics.data.gov.uk/id/local-authority/12UE,Huntingdonshire District Council,24/11/2016,200012,9193723,6,3348,East Of England Lga,CR422620,Human Resources,Training,130
http://statistics.data.gov.uk/id/local-authority/12UE,Huntingdonshire District Council,03/11/2016,197387,L100002311,5,295,Happy Serious Learning,CR455473,Human Resources,Training,130
http://statistics.data.gov.uk/id/local-authority/12UE,Huntingdonshire District Council,17/11/2016,199220,2200073,5,418.8,Haymarket Media Group Ltd,CR479500,Human Resources,Training,130
http://statistics.data.gov.uk/id/local-authority/12UE,Huntingdonshire District Council,17/11/2016,198201,EVE15791,5,348,Institute Of Licensing(Events) Limited,CR480382,Human Resources,Training,130
http://statistics.data.gov.uk/id/local-authority/12UE,Huntingdonshire District Council,24/11/2016,199547,IOSINV010861,5,299,Institute Of Swimming Ltd,CR455603,Human Resources,Training,130
http://statistics.data.gov.uk/id/local-authority/12UE,Huntingdonshire District Council,10/11/2016,198997,R020014988,5,"1,308.00",Stannah Lifts,CR088939,Human Resources,Training,130
http://statistics.data.gov.uk/id/local-authority/12UE,Huntingdonshire District Council,24/11/2016,198695,9354,5,538.8,Waterfront Conference Company Ltd,CR415781,Human Resources,Training,130
http://statistics.data.gov.uk/id/local-authority/12UE,Huntingdonshire District Council,10/11/2016,198956,49006,5,1020,West Anglia Training Assoc.Ltd,CR025035,Human Resources,Training,130
http://statistics.data.gov.uk/id/local-authority/12UE,Huntingdonshire District Council,17/11/2016,198278,49219,5,540,West Anglia Training Assoc.Ltd,CR025035,Human Resources,Training,130
http://statistics.data.gov.uk/id/local-authority/12UE,Huntingdonshire District Council,17/11/2016,198277,49220,5,270,West Anglia Training Assoc.Ltd,CR025035,Human Resources,Training,130
http://statistics.data.gov.uk/id/local-authority/12UE,Huntingdonshire District Council,10/11/2016,198767,191645,5,"2,039.39",Cambridge City Council,CR017896,Imd Shared Service,Consultants,711
http://statistics.data.gov.uk/id/local-authority/12UE,Huntingdonshire District Council,10/11/2016,198805,191641,5,49511.66,Cambridge City Council,CR017896,Imd Shared Service,Equipment Maintenance,511
http://statistics.data.gov.uk/id/local-authority/12UE,Huntingdonshire District Council,10/11/2016,198767,191645,5,6275.92,Cambridge City Council,CR017896,Imd Shared Service,Equipment Maintenance,511
http://statistics.data.gov.uk/id/local-authority/12UE,Huntingdonshire District Council,03/11/2016,198784,123010,5,1350,It Talent Solutions Ltd,CR482676,Imd Shared Service,Hired Staff,100
http://statistics.data.gov.uk/id/local-authority/12UE,Huntingdonshire District Council,03/11/2016,198785,123011,5,2640,It Talent Solutions Ltd,CR482676,Imd Shared Service,Hired Staff,100
http://statistics.data.gov.uk/id/local-authority/12UE,Huntingdonshire District Council,03/11/2016,198786,123012,5,976.8,It Talent Solutions Ltd,CR482676,Imd Shared Service,Hired Staff,100
http://statistics.data.gov.uk/id/local-authority/12UE,Huntingdonshire District Council,03/11/2016,198771,123040,5,976.8,It Talent Solutions Ltd,CR482676,Imd Shared Service,Hired Staff,100
http://statistics.data.gov.uk/id/local-authority/12UE,Huntingdonshire District Council,03/11/2016,198773,123086,5,1350,It Talent Solutions Ltd,CR482676,Imd Shared Service,Hired Staff,100
http://statistics.data.gov.uk/id/local-authority/12UE,Huntingdonshire District Council,03/11/2016,198775,123107,5,2640,It Talent Solutions Ltd,CR482676,Imd Shared Service,Hired Staff,100
http://statistics.data.gov.uk/id/local-authority/12UE,Huntingdonshire District Council,03/11/2016,198768,123119,5,6480,It Talent Solutions Ltd,CR482676,Imd Shared Service,Hired Staff,100
http://statistics.data.gov.uk/id/local-authority/12UE,Huntingdonshire District Council,03/11/2016,198770,123120,5,5670,It Talent Solutions Ltd,CR482676,Imd Shared Service,Hired Staff,100
http://statistics.data.gov.uk/id/local-authority/12UE,Huntingdonshire District Council,24/11/2016,200008,123247,5,3150,It Talent Solutions Ltd,CR482676,Imd Shared Service,Hired Staff,100
http://statistics.data.gov.uk/id/local-authority/12UE,Huntingdonshire District Council,24/11/2016,200009,123271,5,2640,It Talent Solutions Ltd,CR482676,Imd Shared Service,Hired Staff,100
http://statistics.data.gov.uk/id/local-authority/12UE,Huntingdonshire District Council,03/11/2016,198783,R017509,5,624,Premier It Recruitment Ltd,CR454029,Imd Shared Service,Hired Staff,100
http://statistics.data.gov.uk/id/local-authority/12UE,Huntingdonshire District Council,03/11/2016,198776,R017709,5,614.4,Premier It Recruitment Ltd,CR454029,Imd Shared Service,Hired Staff,100
http://statistics.data.gov.uk/id/local-authority/12UE,Huntingdonshire District Council,03/11/2016,197647,15167,5,3720,Vivid Resourcing Limited,CR423536,Imd Shared Service,Hired Staff,100
http://statistics.data.gov.uk/id/local-authority/12UE,Huntingdonshire District Council,03/11/2016,197872,15338,5,3720,Vivid Resourcing Limited,CR423536,Imd Shared Service,Hired Staff,100
http://statistics.data.gov.uk/id/local-authority/12UE,Huntingdonshire District Council,03/11/2016,197874,15339,5,1980,Vivid Resourcing Limited,CR423536,Imd Shared Service,Hired Staff,100
http://statistics.data.gov.uk/id/local-authority/12UE,Huntingdonshire District Council,03/11/2016,198328,15493,5,3300,Vivid Resourcing Limited,CR423536,Imd Shared Service,Hired Staff,100
http://statistics.data.gov.uk/id/local-authority/12UE,Huntingdonshire District Council,03/11/2016,198777,15653,5,7440,Vivid Resourcing Limited,CR423536,Imd Shared Service,Hired Staff,100
http://statistics.data.gov.uk/id/local-authority/12UE,Huntingdonshire District Council,03/11/2016,198781,15654,5,3300,Vivid Resourcing Limited,CR423536,Imd Shared Service,Hired Staff,100
http://statistics.data.gov.uk/id/local-authority/12UE,Huntingdonshire District Council,10/11/2016,198805,191641,5,22516.41,Cambridge City Council,CR017896,Imd Shared Service,I T Line Rental,248
http://statistics.data.gov.uk/id/local-authority/12UE,Huntingdonshire District Council,10/11/2016,198767,191645,5,8256,Cambridge City Council,CR017896,Imd Shared Service,I T Line Rental,248
http://statistics.data.gov.uk/id/local-authority/12UE,Huntingdonshire District Council,03/11/2016,197655,7.42878E+14,5,992.95,Virgin Media Business,CR033120,Imd Shared Service,I T Line Rental,248
http://statistics.data.gov.uk/id/local-authority/12UE,Huntingdonshire District Council,10/11/2016,199306,13545,5,434.4,Advanced Power Technology Ltd,CR423568,Imd Shared Service,Other I T Hardware,203
http://statistics.data.gov.uk/id/local-authority/12UE,Huntingdonshire District Council,24/11/2016,199642,13589,5,1303.2,Advanced Power Technology Ltd,CR423568,Imd Shared Service,Other I T Hardware,203
http://statistics.data.gov.uk/id/local-authority/12UE,Huntingdonshire District Council,10/11/2016,198805,191641,5,9913.3,Cambridge City Council,CR017896,Imd Shared Service,Other I T Hardware,203
http://statistics.data.gov.uk/id/local-authority/12UE,Huntingdonshire District Council,03/11/2016,198687,099371/103007,5,313.09,Galtec Solutions Ltd,CR423396,Imd Shared Service,Other I T Hardware,203
http://statistics.data.gov.uk/id/local-authority/12UE,Huntingdonshire District Council,03/11/2016,198312,3093658,5,756,Insight Direct Uk Ltd,CR000242,Imd Shared Service,Other I T Hardware,203
http://statistics.data.gov.uk/id/local-authority/12UE,Huntingdonshire District Council,03/11/2016,197856,423006,,2181.6,Storm Technologies,CR480909,Imd Shared Service,Other I T Hardware,203
http://statistics.data.gov.uk/id/local-authority/12UE,Huntingdonshire District Council,03/11/2016,197862,423871,,1164,Storm Technologies,CR480909,Imd Shared Service,Other I T Hardware,203
http://statistics.data.gov.uk/id/local-authority/12UE,Huntingdonshire District Council,03/11/2016,198314,425968,,3712.56,Storm Technologies,CR480909,Imd Shared Service,Other I T Hardware,203
http://statistics.data.gov.uk/id/local-authority/12UE,Huntingdonshire District Council,03/11/2016,198314,425968,,83.42,Storm Technologies,CR480909,Imd Shared Service,Other I T Hardware,203
http://statistics.data.gov.uk/id/local-authority/12UE,Huntingdonshire District Council,03/11/2016,198686,426489,,928.14,Storm Technologies,CR480909,Imd Shared Service,Other I T Hardware,203
http://statistics.data.gov.uk/id/local-authority/12UE,Huntingdonshire District Council,03/11/2016,198686,426489,,221.44,Storm Technologies,CR480909,Imd Shared Service,Other I T Hardware,203
http://statistics.data.gov.uk/id/local-authority/12UE,Huntingdonshire District Council,03/11/2016,198685,427288,,672,Storm Technologies,CR480909,Imd Shared Service,Other I T Hardware,203
http://statistics.data.gov.uk/id/local-authority/12UE,Huntingdonshire District Council,17/11/2016,198327,120373,5,684,Twofold Consulting,CR453929,Imd Shared Service,Other Office Expenses,295
http://statistics.data.gov.uk/id/local-authority/12UE,Huntingdonshire District Council,03/11/2016,198325,122964,5,6068.7,It Talent Solutions Ltd,CR482676,Imd Shared Service,Recruitment Costs,120
http://statistics.data.gov.uk/id/local-authority/12UE,Huntingdonshire District Council,03/11/2016,198693,SINV00097871,5,325.2,Bist,CR422733,Imd Shared Service,Software,206
http://statistics.data.gov.uk/id/local-authority/12UE,Huntingdonshire District Council,10/11/2016,198805,191641,5,3149.54,Cambridge City Council,CR017896,Imd Shared Service,Software,206
http://statistics.data.gov.uk/id/local-authority/12UE,Huntingdonshire District Council,10/11/2016,198767,191645,5,63492.97,Cambridge City Council,CR017896,Imd Shared Service,Software,206
http://statistics.data.gov.uk/id/local-authority/12UE,Huntingdonshire District Council,10/11/2016,199305,SIN101024,5,8032.5,Eacs Ltd,CR404499,Imd Shared Service,Software,206
http://statistics.data.gov.uk/id/local-authority/12UE,Huntingdonshire District Council,10/11/2016,199305,SIN101024,5,5512.5,Eacs Ltd,CR404499,Imd Shared Service,Software,206
http://statistics.data.gov.uk/id/local-authority/12UE,Huntingdonshire District Council,10/11/2016,199305,SIN101024,5,"3,981.25",Eacs Ltd,CR404499,Imd Shared Service,Software,206
http://statistics.data.gov.uk/id/local-authority/12UE,Huntingdonshire District Council,17/11/2016,198309,7012141,5,13100,Idox,CR481134,Imd Shared Service,Software,206
http://statistics.data.gov.uk/id/local-authority/12UE,Huntingdonshire District Council,17/11/2016,198694,1567619,5,822.17,Oracle Corporation Uk Ltd,CR400893,Imd Shared Service,Software,206
http://statistics.data.gov.uk/id/local-authority/12UE,Huntingdonshire District Council,03/11/2016,197541,OP/I785170,5,443.28,Phoenix Software Ltd,CR031918,Imd Shared Service,Software,206
http://statistics.data.gov.uk/id/local-authority/12UE,Huntingdonshire District Council,03/11/2016,197852,OP/I785273,5,641.42,Phoenix Software Ltd,CR031918,Imd Shared Service,Software,206
http://statistics.data.gov.uk/id/local-authority/12UE,Huntingdonshire District Council,24/11/2016,200029,OP/I785382,5,312,Phoenix Software Ltd,CR031918,Imd Shared Service,Software,206
http://statistics.data.gov.uk/id/local-authority/12UE,Huntingdonshire District Council,03/11/2016,198692,OP/I785933,5,375.01,Phoenix Software Ltd,CR031918,Imd Shared Service,Software,206
http://statistics.data.gov.uk/id/local-authority/12UE,Huntingdonshire District Council,03/11/2016,198692,OP/I785933,5,320.71,Phoenix Software Ltd,CR031918,Imd Shared Service,Software,206
http://statistics.data.gov.uk/id/local-authority/12UE,Huntingdonshire District Council,24/11/2016,200028,OP/I786239,5,320.71,Phoenix Software Ltd,CR031918,Imd Shared Service,Software,206
http://statistics.data.gov.uk/id/local-authority/12UE,Huntingdonshire District Council,24/11/2016,200038,OP/I786788,5,13969.2,Phoenix Software Ltd,CR031918,Imd Shared Service,Software,206
http://statistics.data.gov.uk/id/local-authority/12UE,Huntingdonshire District Council,10/11/2016,198805,191641,5,"45,043.64",Cambridge City Council,CR017896,Imd Shared Service,Stationery,225
http://statistics.data.gov.uk/id/local-authority/12UE,Huntingdonshire District Council,10/11/2016,198805,191641,5,262.69,Cambridge City Council,CR017896,Imd Shared Service,Telephone &Mobile Phonecharges,240
http://statistics.data.gov.uk/id/local-authority/12UE,Huntingdonshire District Council,10/11/2016,198787,1246907666,5,1710.29,Orange Airtime,CR455799,Imd Shared Service,Telephone &Mobile Phonecharges,240
http://statistics.data.gov.uk/id/local-authority/12UE,Huntingdonshire District Council,03/11/2016,197854,422690,,"2,159.20",Storm Technologies,CR480909,Imd Shared Service,Telephone &Mobile Phonecharges,240
http://statistics.data.gov.uk/id/local-authority/12UE,Huntingdonshire District Council,03/11/2016,197655,7.42878E+14,5,"1,504.68",Virgin Media Business,CR033120,Imd Shared Service,Telephone &Mobile Phonecharges,240
http://statistics.data.gov.uk/id/local-authority/12UE,Huntingdonshire District Council,17/11/2016,198778,81892872,5,267.3,Vodafone Limited,CR029120,Imd Shared Service,Telephone &Mobile Phonecharges,240
http://statistics.data.gov.uk/id/local-authority/12UE,Huntingdonshire District Council,10/11/2016,198805,191641,5,196,Cambridge City Council,CR017896,Imd Shared Service,Training,130
http://statistics.data.gov.uk/id/local-authority/12UE,Huntingdonshire District Council,17/11/2016,199022,AC0214068,5,"6,291.13",Ashco Building & Maintenance Services Ltd,CR422300,Improvement Grants,Mandatory Grants,801
http://statistics.data.gov.uk/id/local-authority/12UE,Huntingdonshire District Council,24/11/2016,198275,AC0214080,5,3358.48,Ashco Building & Maintenance Services Ltd,CR422300,Improvement Grants,Mandatory Grants,801
http://statistics.data.gov.uk/id/local-authority/12UE,Huntingdonshire District Council,17/11/2016,199195,PAID IN ERROR,5,-1056.39,Bsg Property Services Ltd,CR089905,Improvement Grants,Mandatory Grants,801
http://statistics.data.gov.uk/id/local-authority/12UE,Huntingdonshire District Council,17/11/2016,195139,S26455,5,4156,Bsg Property Services Ltd,CR089905,Improvement Grants,Mandatory Grants,801
http://statistics.data.gov.uk/id/local-authority/12UE,Huntingdonshire District Council,03/11/2016,198606,3,5,11000,Complete Home Plumbing & Electrical Ltd,CR424037,Improvement Grants,Mandatory Grants,801
http://statistics.data.gov.uk/id/local-authority/12UE,Huntingdonshire District Council,10/11/2016,199023,4,5,4000,Complete Home Plumbing & Electrical Ltd,CR424037,Improvement Grants,Mandatory Grants,801
http://statistics.data.gov.uk/id/local-authority/12UE,Huntingdonshire District Council,03/11/2016,197998,SLO40041,4,4039.36,Foster Property Maintenance Ltd,CR412056,Improvement Grants,Mandatory Grants,801
http://statistics.data.gov.uk/id/local-authority/12UE,Huntingdonshire District Council,03/11/2016,195911,1379,5,5963,Hd Property Services,CR422148,Improvement Grants,Mandatory Grants,801
http://statistics.data.gov.uk/id/local-authority/12UE,Huntingdonshire District Council,17/11/2016,199461,J&D006560,5,5621.81,J & D Mobility Services Ltd,CR422589,Improvement Grants,Mandatory Grants,801
http://statistics.data.gov.uk/id/local-authority/12UE,Huntingdonshire District Council,10/11/2016,199194,2357,5,2327.54,Jlc Automation Services,CR455474,Improvement Grants,Mandatory Grants,801
http://statistics.data.gov.uk/id/local-authority/12UE,Huntingdonshire District Council,24/11/2016,199923,6457,5,1998,Lynch Healthcare Limited,CR423109,Improvement Grants,Mandatory Grants,801
http://statistics.data.gov.uk/id/local-authority/12UE,Huntingdonshire District Council,03/11/2016,198611,18060,5,833.19,M Watson Construction Ltd,CR480595,Improvement Grants,Mandatory Grants,801
http://statistics.data.gov.uk/id/local-authority/12UE,Huntingdonshire District Council,10/11/2016,198958,18334,5,"1,056.39",M Watson Construction Ltd,CR480595,Improvement Grants,Mandatory Grants,801
http://statistics.data.gov.uk/id/local-authority/12UE,Huntingdonshire District Council,24/11/2016,199262,19185,5,3116.98,M Watson Construction Ltd,CR480595,Improvement Grants,Mandatory Grants,801
http://statistics.data.gov.uk/id/local-authority/12UE,Huntingdonshire District Council,24/11/2016,199255,19186,5,702.2,M Watson Construction Ltd,CR480595,Improvement Grants,Mandatory Grants,801
http://statistics.data.gov.uk/id/local-authority/12UE,Huntingdonshire District Council,24/11/2016,199621,19190,5,2983.45,M Watson Construction Ltd,CR480595,Improvement Grants,Mandatory Grants,801
http://statistics.data.gov.uk/id/local-authority/12UE,Huntingdonshire District Council,24/11/2016,198682,6209,5,260,Priory Buildings (St Neots) Ltd,CR410900,Improvement Grants,Mandatory Grants,801
http://statistics.data.gov.uk/id/local-authority/12UE,Huntingdonshire District Council,03/11/2016,196961,5153048,4,10078.98,Prism Medical Uk,CR480892,Improvement Grants,Mandatory Grants,801
http://statistics.data.gov.uk/id/local-authority/12UE,Huntingdonshire District Council,10/11/2016,199263,SO85049286,5,2118,Stannah Ltd Ref(20hu025),CR000759,Improvement Grants,Mandatory Grants,801
http://statistics.data.gov.uk/id/local-authority/12UE,Huntingdonshire District Council,24/11/2016,199193,OP/I117284,5,3978.5,Total Hygiene Ltd,CR083280,Improvement Grants,Mandatory Grants,801
http://statistics.data.gov.uk/id/local-authority/12UE,Huntingdonshire District Council,10/11/2016,198141,372,7,4145,Wayne Bingham,CR405796,Improvement Grants,Mandatory Grants,801
http://statistics.data.gov.uk/id/local-authority/12UE,Huntingdonshire District Council,10/11/2016,198612,374,7,"1,296.00",Wayne Bingham,CR405796,Improvement Grants,Mandatory Grants,801
http://statistics.data.gov.uk/id/local-authority/12UE,Huntingdonshire District Council,24/11/2016,199591,377,7,4005,Wayne Bingham,CR405796,Improvement Grants,Mandatory Grants,801
http://statistics.data.gov.uk/id/local-authority/12UE,Huntingdonshire District Council,10/11/2016,199055,5.59133E+12,5,649.59,British Gas Business,CR416363,Improvement Grants,Shared Service Savings,798
http://statistics.data.gov.uk/id/local-authority/12UE,Huntingdonshire District Council,10/11/2016,198142,373,7,480,Wayne Bingham,CR405796,Improvement Grants,Shared Service Savings,798
http://statistics.data.gov.uk/id/local-authority/12UE,Huntingdonshire District Council,24/11/2016,199528,14807,5,351.54,Jade Security Services Ltd,CR422256,Interest Received,Cash Collection,702
http://statistics.data.gov.uk/id/local-authority/12UE,Huntingdonshire District Council,03/11/2016,198366,10700512,5,25460,Cambridgeshire County Council,CR006678,Land Charges,Other Office Expenses,295
http://statistics.data.gov.uk/id/local-authority/12UE,Huntingdonshire District Council,24/11/2016,198336,426811,5,1041.05,Heasell Electromechanical Services Ltd,CR422407,Leisure Centres Capital,Building Mtce,303
http://statistics.data.gov.uk/id/local-authority/12UE,Huntingdonshire District Council,17/11/2016,198658,7080586209,5,2652.38,Honeywell Novar Systems,CR406826,Leisure Centres Capital,Building Mtce,303
http://statistics.data.gov.uk/id/local-authority/12UE,Huntingdonshire District Council,17/11/2016,198256,5821,5,3940.2,Steamworks Ltd T/A Anapos,CR423966,Leisure Centres Capital,Building Mtce,303
http://statistics.data.gov.uk/id/local-authority/12UE,Huntingdonshire District Council,03/11/2016,197384,260228,5,515.48,First Recruitment Group Ltd,CR424012,Licences,Hired Staff,100
http://statistics.data.gov.uk/id/local-authority/12UE,Huntingdonshire District Council,03/11/2016,197385,260229,5,411,First Recruitment Group Ltd,CR424012,Licences,Hired Staff,100
http://statistics.data.gov.uk/id/local-authority/12UE,Huntingdonshire District Council,03/11/2016,197797,260790,5,411,First Recruitment Group Ltd,CR424012,Licences,Hired Staff,100
http://statistics.data.gov.uk/id/local-authority/12UE,Huntingdonshire District Council,03/11/2016,198271,261210,5,557.29,First Recruitment Group Ltd,CR424012,Licences,Hired Staff,100
http://statistics.data.gov.uk/id/local-authority/12UE,Huntingdonshire District Council,03/11/2016,198608,261619,5,515.48,First Recruitment Group Ltd,CR424012,Licences,Hired Staff,100
http://statistics.data.gov.uk/id/local-authority/12UE,Huntingdonshire District Council,24/11/2016,198810,4305,5,2660,Adams Autos,CR422066,Licences,Vehicle Inspection,618
http://statistics.data.gov.uk/id/local-authority/12UE,Huntingdonshire District Council,10/11/2016,199010,2016/2603,5,6426.46,Jba Consulting,CR423103,Local Development Framework,Consultants,711
http://statistics.data.gov.uk/id/local-authority/12UE,Huntingdonshire District Council,10/11/2016,197511,INV-2227,7,312,Tim George,CR415398,Member Allowances & Support,Photographic Services,739
http://statistics.data.gov.uk/id/local-authority/12UE,Huntingdonshire District Council,24/11/2016,199271,4129,5,313.01,Newlyn Plc,CR409114,N N D R Administration,Bailiffs,703
http://statistics.data.gov.uk/id/local-authority/12UE,Huntingdonshire District Council,17/11/2016,197566,14672,5,4658.04,Jade Security Services Ltd,CR422256,Off Street Parking,Cash Collection,702
http://statistics.data.gov.uk/id/local-authority/12UE,Huntingdonshire District Council,24/11/2016,198968,14806,5,4692.24,Jade Security Services Ltd,CR422256,Off Street Parking,Cash Collection,702
http://statistics.data.gov.uk/id/local-authority/12UE,Huntingdonshire District Council,03/11/2016,198766,39286,5,"49,963.26",Cbre Richard Ellis Ltd,CR487227,Off Street Parking,Contribution (Paid Out),810
http://statistics.data.gov.uk/id/local-authority/12UE,Huntingdonshire District Council,10/11/2016,198711,91226466,5,355.7,Swalec,CR407130,Off Street Parking,Electricity,420
http://statistics.data.gov.uk/id/local-authority/12UE,Huntingdonshire District Council,10/11/2016,198719,321225941,5,251.01,Swalec,CR407130,Off Street Parking,Electricity,420
http://statistics.data.gov.uk/id/local-authority/12UE,Huntingdonshire District Council,17/11/2016,199446,841226380,5,304.81,Swalec,CR407130,Off Street Parking,Electricity,420
http://statistics.data.gov.uk/id/local-authority/12UE,Huntingdonshire District Council,10/11/2016,199187,B3121519,5,3386.59,Bemrose Mobile Ltd,CR422668,Off Street Parking,Equipment Hire,507
http://statistics.data.gov.uk/id/local-authority/12UE,Huntingdonshire District Council,24/11/2016,199186,B3121565,5,3707.86,Bemrose Mobile Ltd,CR422668,Off Street Parking,Equipment Hire,507
http://statistics.data.gov.uk/id/local-authority/12UE,Huntingdonshire District Council,10/11/2016,199175,117465,5,3610.33,Cale Briparc Ltd,CR401137,Off Street Parking,Equipment Maintenance,511
http://statistics.data.gov.uk/id/local-authority/12UE,Huntingdonshire District Council,24/11/2016,198986,6762,5,126,Cambridge Door Services,CR415341,Off Street Parking,Plant & Equipment Maintenance,380
http://statistics.data.gov.uk/id/local-authority/12UE,Huntingdonshire District Council,10/11/2016,198995,P020148796,5,921.6,Stannah Lifts,CR088939,Off Street Parking,Plant & Equipment Maintenance,380
http://statistics.data.gov.uk/id/local-authority/12UE,Huntingdonshire District Council,10/11/2016,198993,R020015021,5,2013.6,Stannah Lifts,CR088939,Off Street Parking,Plant & Equipment Maintenance,380
http://statistics.data.gov.uk/id/local-authority/12UE,Huntingdonshire District Council,10/11/2016,198994,R020015022,5,1548,Stannah Lifts,CR088939,Off Street Parking,Plant & Equipment Maintenance,380
http://statistics.data.gov.uk/id/local-authority/12UE,Huntingdonshire District Council,24/11/2016,198667,328,5,984,E J Environmental Design Ltd,CR424005,Ol Hdon Changing Facilities,Building Mtce,303
http://statistics.data.gov.uk/id/local-authority/12UE,Huntingdonshire District Council,03/11/2016,197358,13478,5,701.99,Buyer Direct Ltd,CR422460,One Leisure Active Lifestyles,Advertising/Promoting Services,255
http://statistics.data.gov.uk/id/local-authority/12UE,Huntingdonshire District Council,24/11/2016,199012,171,5,169.03,Huntingdon Gymnastics Club,CR478042,One Leisure Active Lifestyles,Hire Of Rooms,411
http://statistics.data.gov.uk/id/local-authority/12UE,Huntingdonshire District Council,24/11/2016,199012,171,5,422.57,Huntingdon Gymnastics Club,CR478042,One Leisure Active Lifestyles,Instructors/Tutors,720
http://statistics.data.gov.uk/id/local-authority/12UE,Huntingdonshire District Council,03/11/2016,197202,168061,5,121.2,Lead Forensics,CR423143,One Leisure Corporate Mgt,Advertising/Promoting Services,255
http://statistics.data.gov.uk/id/local-authority/12UE,Huntingdonshire District Council,17/11/2016,197820,SIN043336,5,85.63,Iql Uk Ltd,CR415623,One Leisure Corporate Mgt,Licences,730
http://statistics.data.gov.uk/id/local-authority/12UE,Huntingdonshire District Council,17/11/2016,198600,77676,5,574.8,Gladstone Mrm,CR405717,One Leisure Corporate Mgt,Network Hardware,205
http://statistics.data.gov.uk/id/local-authority/12UE,Huntingdonshire District Council,24/11/2016,198165,77684,5,471.6,Gladstone Mrm,CR405717,One Leisure Corporate Mgt,Software,206
http://statistics.data.gov.uk/id/local-authority/12UE,Huntingdonshire District Council,03/11/2016,197202,168061,5,120,Lead Forensics,CR423143,One Leisure Huntingdon,Advertising/Promoting Services,255
http://statistics.data.gov.uk/id/local-authority/12UE,Huntingdonshire District Council,03/11/2016,197560,26886,5,133.8,Pro-Ad Ltd,CR453959,One Leisure Huntingdon,Advertising/Promoting Services,255
http://statistics.data.gov.uk/id/local-authority/12UE,Huntingdonshire District Council,03/11/2016,197968,73538,5,210.77,Snackline Direct Ltd,CR478090,One Leisure Huntingdon,Bar Provisions,558
http://statistics.data.gov.uk/id/local-authority/12UE,Huntingdonshire District Council,03/11/2016,198245,30613,5,755.65,Hi-Spec Facilities Services Plc,CR423413,One Leisure Huntingdon,Building Cleaning,440
http://statistics.data.gov.uk/id/local-authority/12UE,Huntingdonshire District Council,03/11/2016,198208,30814,5,755.65,Hi-Spec Facilities Services Plc,CR423413,One Leisure Huntingdon,Building Cleaning,440
http://statistics.data.gov.uk/id/local-authority/12UE,Huntingdonshire District Council,03/11/2016,197995,42070,5,2272.75,Dal-Rod,CR017043,One Leisure Huntingdon,Building Mtce,303
http://statistics.data.gov.uk/id/local-authority/12UE,Huntingdonshire District Council,17/11/2016,198242,42204,5,292.8,Dal-Rod Uk Ltd,CR002782,One Leisure Huntingdon,Building Mtce,303
http://statistics.data.gov.uk/id/local-authority/12UE,Huntingdonshire District Council,24/11/2016,199528,14807,5,301.32,Jade Security Services Ltd,CR422256,One Leisure Huntingdon,Cash Collection,702
http://statistics.data.gov.uk/id/local-authority/12UE,Huntingdonshire District Council,03/11/2016,197968,73538,5,16.49,Snackline Direct Ltd,CR478090,One Leisure Huntingdon,Catering Materials,559
http://statistics.data.gov.uk/id/local-authority/12UE,Huntingdonshire District Council,03/11/2016,197783,4208022,1,88.97,Espo,CR006566,One Leisure Huntingdon,Cleaning Materials,443
http://statistics.data.gov.uk/id/local-authority/12UE,Huntingdonshire District Council,03/11/2016,197968,73538,5,83.81,Snackline Direct Ltd,CR478090,One Leisure Huntingdon,Confectionery,572
http://statistics.data.gov.uk/id/local-authority/12UE,Huntingdonshire District Council,17/11/2016,199443,481677109,5,2103.26,Swalec,CR407130,One Leisure Huntingdon,Electricity,420
http://statistics.data.gov.uk/id/local-authority/12UE,Huntingdonshire District Council,03/11/2016,197783,4208022,1,77.79,Espo,CR006566,One Leisure Huntingdon,Equipment,500
http://statistics.data.gov.uk/id/local-authority/12UE,Huntingdonshire District Council,24/11/2016,198165,77684,5,684,Gladstone Mrm,CR405717,One Leisure Huntingdon,Equipment Hire,507
http://statistics.data.gov.uk/id/local-authority/12UE,Huntingdonshire District Council,03/11/2016,197596,64297104,5,960.97,Phs Group Ltd,CR032018,One Leisure Huntingdon,Equipment Hire,507
http://statistics.data.gov.uk/id/local-authority/12UE,Huntingdonshire District Council,17/11/2016,198237,347464,5,294,Thurlow Nunn Standen Ltd,CR001534,One Leisure Huntingdon,Equipment Maintenance,511
http://statistics.data.gov.uk/id/local-authority/12UE,Huntingdonshire District Council,17/11/2016,199617,12489088110,5,2398.51,E-On Energy,CR416430,One Leisure Huntingdon,Gas,421
http://statistics.data.gov.uk/id/local-authority/12UE,Huntingdonshire District Council,17/11/2016,199639,12489088970,5,507.5,E-On Energy,CR416430,One Leisure Huntingdon,Gas,421
http://statistics.data.gov.uk/id/local-authority/12UE,Huntingdonshire District Council,17/11/2016,197820,SIN043336,5,65,Iql Uk Ltd,CR415623,One Leisure Huntingdon,Licences,730
http://statistics.data.gov.uk/id/local-authority/12UE,Huntingdonshire District Council,03/11/2016,198668,INV-0033,5,125,Wamo Sports Ltd,CR423559,One Leisure Huntingdon,Licences,730
http://statistics.data.gov.uk/id/local-authority/12UE,Huntingdonshire District Council,03/11/2016,197783,4208022,1,52.78,Espo,CR006566,One Leisure Huntingdon,Materials,550
http://statistics.data.gov.uk/id/local-authority/12UE,Huntingdonshire District Council,03/11/2016,197823,77476,5,1446,Gladstone Mrm,CR405717,One Leisure Huntingdon,Materials,550
http://statistics.data.gov.uk/id/local-authority/12UE,Huntingdonshire District Council,10/11/2016,198747,SI64620-1,5,673,Rlss Uk Enterprises Ltd - Lifesavers Direct,CR401615,One Leisure Huntingdon,Materials,550
http://statistics.data.gov.uk/id/local-authority/12UE,Huntingdonshire District Council,10/11/2016,197639,92466385,5,1087.4,Speedo International Limited,CR41427,One Leisure Huntingdon,Materials For Resale,570
http://statistics.data.gov.uk/id/local-authority/12UE,Huntingdonshire District Council,24/11/2016,193175,1027294,5,2337.84,Taylor Made Designs,CR417271,One Leisure Huntingdon,Protective Clothing & Uniforms,163
http://statistics.data.gov.uk/id/local-authority/12UE,Huntingdonshire District Council,03/11/2016,197360,1030447,5,284.16,Taylor Made Designs,CR417271,One Leisure Huntingdon,Protective Clothing & Uniforms,163
http://statistics.data.gov.uk/id/local-authority/12UE,Huntingdonshire District Council,24/11/2016,199565,8001075,5,-1733.04,Taylor Made Designs,CR417271,One Leisure Huntingdon,Protective Clothing & Uniforms,163
http://statistics.data.gov.uk/id/local-authority/12UE,Huntingdonshire District Council,24/11/2016,198165,77684,5,2829.6,Gladstone Mrm,CR405717,One Leisure Huntingdon,Software,206
http://statistics.data.gov.uk/id/local-authority/12UE,Huntingdonshire District Council,03/11/2016,197783,4208022,1,105.32,Espo,CR006566,One Leisure Huntingdon,Stationery,225
http://statistics.data.gov.uk/id/local-authority/12UE,Huntingdonshire District Council,24/11/2016,199218,151519,5,90,Inn-Dispensable Business Services Ltd,CR479156,One Leisure Huntingdon,Training,130
http://statistics.data.gov.uk/id/local-authority/12UE,Huntingdonshire District Council,24/11/2016,198624,10323647,5,267.07,Lucozade Ribena Suntory Ltd,CR422660,One Leisure Huntingdon,Vending Materials,560
http://statistics.data.gov.uk/id/local-authority/12UE,Huntingdonshire District Council,03/11/2016,197970,73537,5,305.91,Snackline Direct Ltd,CR478090,One Leisure Huntingdon,Vending Materials,560
http://statistics.data.gov.uk/id/local-authority/12UE,Huntingdonshire District Council,03/11/2016,197884,73780,5,396.76,Snackline Direct Ltd,CR478090,One Leisure Huntingdon,Vending Materials,560
http://statistics.data.gov.uk/id/local-authority/12UE,Huntingdonshire District Council,03/11/2016,197202,168061,5,60,Lead Forensics,CR423143,One Leisure Ramsey,Advertising/Promoting Services,255
http://statistics.data.gov.uk/id/local-authority/12UE,Huntingdonshire District Council,03/11/2016,197560,26886,5,133.8,Pro-Ad Ltd,CR453959,One Leisure Ramsey,Advertising/Promoting Services,255
http://statistics.data.gov.uk/id/local-authority/12UE,Huntingdonshire District Council,03/11/2016,198245,30613,5,593.74,Hi-Spec Facilities Services Plc,CR423413,One Leisure Ramsey,Building Cleaning,440
http://statistics.data.gov.uk/id/local-authority/12UE,Huntingdonshire District Council,03/11/2016,198208,30814,5,593.74,Hi-Spec Facilities Services Plc,CR423413,One Leisure Ramsey,Building Cleaning,440
http://statistics.data.gov.uk/id/local-authority/12UE,Huntingdonshire District Council,03/11/2016,198734,18845,5,271.2,Mcintyre Leisure,CR404059,One Leisure Ramsey,Building Mtce,303
http://statistics.data.gov.uk/id/local-authority/12UE,Huntingdonshire District Council,17/11/2016,199557,9700,5,286.14,Roger Wilson Electronics,CR028041,One Leisure Ramsey,Building Mtce,303
http://statistics.data.gov.uk/id/local-authority/12UE,Huntingdonshire District Council,24/11/2016,199528,14807,5,83.7,Jade Security Services Ltd,CR422256,One Leisure Ramsey,Cash Collection,702
http://statistics.data.gov.uk/id/local-authority/12UE,Huntingdonshire District Council,17/11/2016,199445,151678759,5,3060.48,Swalec,CR407130,One Leisure Ramsey,Electricity,420
http://statistics.data.gov.uk/id/local-authority/12UE,Huntingdonshire District Council,03/11/2016,197163,822336,5,486.14,J P Lennard Ltd,CR028595,One Leisure Ramsey,Equipment,500
http://statistics.data.gov.uk/id/local-authority/12UE,Huntingdonshire District Council,24/11/2016,198619,825434,5,694.26,J P Lennard Ltd,CR028595,One Leisure Ramsey,Equipment,500
http://statistics.data.gov.uk/id/local-authority/12UE,Huntingdonshire District Council,24/11/2016,198165,77684,5,684,Gladstone Mrm,CR405717,One Leisure Ramsey,Equipment Hire,507
http://statistics.data.gov.uk/id/local-authority/12UE,Huntingdonshire District Council,03/11/2016,198179,16011592,5,1528.48,Technogym Uk Ltd,CR033037,One Leisure Ramsey,Equipment Maintenance,511
http://statistics.data.gov.uk/id/local-authority/12UE,Huntingdonshire District Council,17/11/2016,198238,347465,5,294,Thurlow Nunn Standen Ltd,CR001534,One Leisure Ramsey,Equipment Maintenance,511
http://statistics.data.gov.uk/id/local-authority/12UE,Huntingdonshire District Council,17/11/2016,199635,12489090790,5,1382.83,Swalec,CR407130,One Leisure Ramsey,Gas,421
http://statistics.data.gov.uk/id/local-authority/12UE,Huntingdonshire District Council,17/11/2016,197820,SIN043336,5,65,Iql Uk Ltd,CR415623,One Leisure Ramsey,Licences,730
http://statistics.data.gov.uk/id/local-authority/12UE,Huntingdonshire District Council,03/11/2016,198668,INV-0033,5,62.5,Wamo Sports Ltd,CR423559,One Leisure Ramsey,Licences,730
http://statistics.data.gov.uk/id/local-authority/12UE,Huntingdonshire District Council,03/11/2016,197823,77476,5,720,Gladstone Mrm,CR405717,One Leisure Ramsey,Materials,550
http://statistics.data.gov.uk/id/local-authority/12UE,Huntingdonshire District Council,24/11/2016,193175,1027294,5,993.24,Taylor Made Designs,CR417271,One Leisure Ramsey,Protective Clothing & Uniforms,163
http://statistics.data.gov.uk/id/local-authority/12UE,Huntingdonshire District Council,24/11/2016,198165,77684,5,943.2,Gladstone Mrm,CR405717,One Leisure Ramsey,Software,206
http://statistics.data.gov.uk/id/local-authority/12UE,Huntingdonshire District Council,24/11/2016,198973,351934,5,350.65,Kent & Sussex Vending,CR455622,One Leisure Ramsey,Vending Materials,560
http://statistics.data.gov.uk/id/local-authority/12UE,Huntingdonshire District Council,03/11/2016,197202,168061,5,60,Lead Forensics,CR423143,One Leisure Sawtry,Advertising/Promoting Services,255
http://statistics.data.gov.uk/id/local-authority/12UE,Huntingdonshire District Council,03/11/2016,197560,26886,5,133.8,Pro-Ad Ltd,CR453959,One Leisure Sawtry,Advertising/Promoting Services,255
http://statistics.data.gov.uk/id/local-authority/12UE,Huntingdonshire District Council,03/11/2016,198245,30613,5,620.72,Hi-Spec Facilities Services Plc,CR423413,One Leisure Sawtry,Building Cleaning,440
http://statistics.data.gov.uk/id/local-authority/12UE,Huntingdonshire District Council,03/11/2016,198208,30814,5,620.72,Hi-Spec Facilities Services Plc,CR423413,One Leisure Sawtry,Building Cleaning,440
http://statistics.data.gov.uk/id/local-authority/12UE,Huntingdonshire District Council,03/11/2016,197841,S3085618,5,2424,First In Service Ltd,CR422285,One Leisure Sawtry,Building Mtce,303
http://statistics.data.gov.uk/id/local-authority/12UE,Huntingdonshire District Council,17/11/2016,198710,9688,5,552.96,Roger Wilson Electronics,CR028041,One Leisure Sawtry,Building Mtce,303
http://statistics.data.gov.uk/id/local-authority/12UE,Huntingdonshire District Council,24/11/2016,199528,14807,5,83.7,Jade Security Services Ltd,CR422256,One Leisure Sawtry,Cash Collection,702
http://statistics.data.gov.uk/id/local-authority/12UE,Huntingdonshire District Council,17/11/2016,198234,38SI 3834956,5,846.08,Brenntag Uk Ltd,CR015017,One Leisure Sawtry,Chemicals,551
http://statistics.data.gov.uk/id/local-authority/12UE,Huntingdonshire District Council,24/11/2016,198165,77684,5,684,Gladstone Mrm,CR405717,One Leisure Sawtry,Equipment Hire,507
http://statistics.data.gov.uk/id/local-authority/12UE,Huntingdonshire District Council,17/11/2016,198239,356342,5,294,Thurlow Nunn Standen Ltd,CR001534,One Leisure Sawtry,Equipment Maintenance,511
http://statistics.data.gov.uk/id/local-authority/12UE,Huntingdonshire District Council,03/11/2016,603871,CHAIRS/TROLLEY,2,504,REDACTED PERSONAL DATA,CR479877,One Leisure Sawtry,Furniture,200
http://statistics.data.gov.uk/id/local-authority/12UE,Huntingdonshire District Council,17/11/2016,199640,12489088700,5,1074.79,E-On Energy,CR416430,One Leisure Sawtry,Gas,421
http://statistics.data.gov.uk/id/local-authority/12UE,Huntingdonshire District Council,17/11/2016,197820,SIN043336,5,65,Iql Uk Ltd,CR415623,One Leisure Sawtry,Licences,730
http://statistics.data.gov.uk/id/local-authority/12UE,Huntingdonshire District Council,03/11/2016,198668,INV-0033,5,62.5,Wamo Sports Ltd,CR423559,One Leisure Sawtry,Licences,730
http://statistics.data.gov.uk/id/local-authority/12UE,Huntingdonshire District Council,03/11/2016,197823,77476,5,720,Gladstone Mrm,CR405717,One Leisure Sawtry,Materials,550
http://statistics.data.gov.uk/id/local-authority/12UE,Huntingdonshire District Council,24/11/2016,193175,1027294,5,963.36,Taylor Made Designs,CR417271,One Leisure Sawtry,Protective Clothing & Uniforms,163
http://statistics.data.gov.uk/id/local-authority/12UE,Huntingdonshire District Council,24/11/2016,198165,77684,5,943.2,Gladstone Mrm,CR405717,One Leisure Sawtry,Software,206
http://statistics.data.gov.uk/id/local-authority/12UE,Huntingdonshire District Council,03/11/2016,603870,SKIP HIRE,2,276,REDACTED PERSONAL DATA,CR479877,One Leisure Sawtry,Waste Disposal,763
http://statistics.data.gov.uk/id/local-authority/12UE,Huntingdonshire District Council,17/11/2016,199681,55738484,5,283.5,Archant Herts & Cambs,CR415764,One Leisure St Ives,Advertising/Promoting Services,255
http://statistics.data.gov.uk/id/local-authority/12UE,Huntingdonshire District Council,03/11/2016,197202,168061,5,120,Lead Forensics,CR423143,One Leisure St Ives,Advertising/Promoting Services,255
http://statistics.data.gov.uk/id/local-authority/12UE,Huntingdonshire District Council,03/11/2016,197560,26886,5,133.8,Pro-Ad Ltd,CR453959,One Leisure St Ives,Advertising/Promoting Services,255
http://statistics.data.gov.uk/id/local-authority/12UE,Huntingdonshire District Council,03/11/2016,198596,2102763011,5,256.21,Booker Cash And Carry,CR027611,One Leisure St Ives,Bar Provisions,558
http://statistics.data.gov.uk/id/local-authority/12UE,Huntingdonshire District Council,03/11/2016,198630,2102775319,5,"1,714.58",Booker Cash And Carry,CR027611,One Leisure St Ives,Bar Provisions,558
http://statistics.data.gov.uk/id/local-authority/12UE,Huntingdonshire District Council,03/11/2016,198595,2102786407,5,224.63,Booker Cash And Carry,CR027611,One Leisure St Ives,Bar Provisions,558
http://statistics.data.gov.uk/id/local-authority/12UE,Huntingdonshire District Council,24/11/2016,199003,2102800846,5,818.51,Booker Cash And Carry,CR027611,One Leisure St Ives,Bar Provisions,558
http://statistics.data.gov.uk/id/local-authority/12UE,Huntingdonshire District Council,24/11/2016,199921,2102811638,5,914.32,Booker Cash And Carry,CR027611,One Leisure St Ives,Bar Provisions,558
http://statistics.data.gov.uk/id/local-authority/12UE,Huntingdonshire District Council,03/11/2016,198170,633791,5,933.52,Lacons,CR422174,One Leisure St Ives,Bar Provisions,558
http://statistics.data.gov.uk/id/local-authority/12UE,Huntingdonshire District Council,03/11/2016,198168,634256,5,727.42,Lacons,CR422174,One Leisure St Ives,Bar Provisions,558
http://statistics.data.gov.uk/id/local-authority/12UE,Huntingdonshire District Council,03/11/2016,198167,634267,5,298.97,Lacons,CR422174,One Leisure St Ives,Bar Provisions,558
http://statistics.data.gov.uk/id/local-authority/12UE,Huntingdonshire District Council,03/11/2016,198578,73333,5,111.52,Snackline Direct Ltd,CR478090,One Leisure St Ives,Bar Provisions,558
http://statistics.data.gov.uk/id/local-authority/12UE,Huntingdonshire District Council,03/11/2016,198247,395364,5,7.08,South Lincs Food Service,CR033415,One Leisure St Ives,Bar Provisions,558
http://statistics.data.gov.uk/id/local-authority/12UE,Huntingdonshire District Council,03/11/2016,198245,30613,5,4560.91,Hi-Spec Facilities Services Plc,CR423413,One Leisure St Ives,Building Cleaning,440
http://statistics.data.gov.uk/id/local-authority/12UE,Huntingdonshire District Council,03/11/2016,198208,30814,5,4560.91,Hi-Spec Facilities Services Plc,CR423413,One Leisure St Ives,Building Cleaning,440
http://statistics.data.gov.uk/id/local-authority/12UE,Huntingdonshire District Council,17/11/2016,198011,32146035,5,264.35,Initial Washroom Solutions,CR416072,One Leisure St Ives,Building Cleaning,440
http://statistics.data.gov.uk/id/local-authority/12UE,Huntingdonshire District Council,03/11/2016,198673,S3086382,5,2008.8,First In Service Ltd,CR422285,One Leisure St Ives,Building Mtce,303
http://statistics.data.gov.uk/id/local-authority/12UE,Huntingdonshire District Council,17/11/2016,197824,1853,5,348,Flexerefrigeration Ltd,CR422336,One Leisure St Ives,Building Mtce,303
http://statistics.data.gov.uk/id/local-authority/12UE,Huntingdonshire District Council,10/11/2016,197881,44,5,725,Lui The Plumber,CR422379,One Leisure St Ives,Building Mtce,303
http://statistics.data.gov.uk/id/local-authority/12UE,Huntingdonshire District Council,10/11/2016,197880,46,5,790,Lui The Plumber,CR422379,One Leisure St Ives,Building Mtce,303
http://statistics.data.gov.uk/id/local-authority/12UE,Huntingdonshire District Council,10/11/2016,198358,47,5,285,Lui The Plumber,CR422379,One Leisure St Ives,Building Mtce,303
http://statistics.data.gov.uk/id/local-authority/12UE,Huntingdonshire District Council,10/11/2016,198729,INV001572,5,619.68,Lynx Bowling Services,CR455532,One Leisure St Ives,Building Mtce,303
http://statistics.data.gov.uk/id/local-authority/12UE,Huntingdonshire District Council,10/11/2016,199025,10341,,330.89,Rds Property Serivces,CR423448,One Leisure St Ives,Building Mtce,303
http://statistics.data.gov.uk/id/local-authority/12UE,Huntingdonshire District Council,10/11/2016,198626,9684,5,1061.94,Roger Wilson Electronics,CR028041,One Leisure St Ives,Building Mtce,303
http://statistics.data.gov.uk/id/local-authority/12UE,Huntingdonshire District Council,24/11/2016,199556,9697,5,906,Roger Wilson Electronics,CR028041,One Leisure St Ives,Building Mtce,303
http://statistics.data.gov.uk/id/local-authority/12UE,Huntingdonshire District Council,24/11/2016,199554,9698,5,210,Roger Wilson Electronics,CR028041,One Leisure St Ives,Building Mtce,303
http://statistics.data.gov.uk/id/local-authority/12UE,Huntingdonshire District Council,24/11/2016,199528,14807,5,217.62,Jade Security Services Ltd,CR422256,One Leisure St Ives,Cash Collection,702
http://statistics.data.gov.uk/id/local-authority/12UE,Huntingdonshire District Council,24/11/2016,199836,INV-0276,5,3423.42,Big Day Events Ltd,CR453802,One Leisure St Ives,Catering,710
http://statistics.data.gov.uk/id/local-authority/12UE,Huntingdonshire District Council,03/11/2016,198596,2102763011,5,38.92,Booker Cash And Carry,CR027611,One Leisure St Ives,Catering Materials,559
http://statistics.data.gov.uk/id/local-authority/12UE,Huntingdonshire District Council,03/11/2016,198630,2102775319,5,120.33,Booker Cash And Carry,CR027611,One Leisure St Ives,Catering Materials,559
http://statistics.data.gov.uk/id/local-authority/12UE,Huntingdonshire District Council,03/11/2016,198595,2102786407,5,15.68,Booker Cash And Carry,CR027611,One Leisure St Ives,Catering Materials,559
http://statistics.data.gov.uk/id/local-authority/12UE,Huntingdonshire District Council,24/11/2016,199003,2102800846,5,90.77,Booker Cash And Carry,CR027611,One Leisure St Ives,Catering Materials,559
http://statistics.data.gov.uk/id/local-authority/12UE,Huntingdonshire District Council,24/11/2016,199921,2102811638,5,133.88,Booker Cash And Carry,CR027611,One Leisure St Ives,Catering Materials,559
http://statistics.data.gov.uk/id/local-authority/12UE,Huntingdonshire District Council,17/11/2016,198236,INV064263,5,409.86,Slush Puppie Ltd,CR455958,One Leisure St Ives,Catering Materials,559
http://statistics.data.gov.uk/id/local-authority/12UE,Huntingdonshire District Council,03/11/2016,198578,73333,5,33.5,Snackline Direct Ltd,CR478090,One Leisure St Ives,Catering Materials,559
http://statistics.data.gov.uk/id/local-authority/12UE,Huntingdonshire District Council,03/11/2016,198566,394962,5,233.73,South Lincs Food Service,CR033415,One Leisure St Ives,Catering Materials,559
http://statistics.data.gov.uk/id/local-authority/12UE,Huntingdonshire District Council,03/11/2016,198247,395364,5,154.65,South Lincs Food Service,CR033415,One Leisure St Ives,Catering Materials,559
http://statistics.data.gov.uk/id/local-authority/12UE,Huntingdonshire District Council,24/11/2016,199921,2102811638,5,14.98,Booker Cash And Carry,CR027611,One Leisure St Ives,Cleaning Materials,443
http://statistics.data.gov.uk/id/local-authority/12UE,Huntingdonshire District Council,03/11/2016,198372,60425,5,296.41,Maskearaid Ltd,CR033423,One Leisure St Ives,Cleaning Materials,443
http://statistics.data.gov.uk/id/local-authority/12UE,Huntingdonshire District Council,03/11/2016,198630,2102775319,5,27.23,Booker Cash And Carry,CR027611,One Leisure St Ives,Confectionery,572
http://statistics.data.gov.uk/id/local-authority/12UE,Huntingdonshire District Council,03/11/2016,198578,73333,5,125.59,Snackline Direct Ltd,CR478090,One Leisure St Ives,Confectionery,572
http://statistics.data.gov.uk/id/local-authority/12UE,Huntingdonshire District Council,03/11/2016,198566,394962,5,25.06,South Lincs Food Service,CR033415,One Leisure St Ives,Confectionery,572
http://statistics.data.gov.uk/id/local-authority/12UE,Huntingdonshire District Council,25/11/2016,200232,65919,5,3888.66,Haven Power Ltd,CR455940,One Leisure St Ives,Electricity,420
http://statistics.data.gov.uk/id/local-authority/12UE,Huntingdonshire District Council,17/11/2016,199437,65919,5,3520.43,Haven Power Ltd,CR455940,One Leisure St Ives,Electricity,420
http://statistics.data.gov.uk/id/local-authority/12UE,Huntingdonshire District Council,17/11/2016,199438,65922,5,3634.07,Haven Power Ltd,CR455940,One Leisure St Ives,Electricity,420
http://statistics.data.gov.uk/id/local-authority/12UE,Huntingdonshire District Council,24/11/2016,199295,1027343005,5,497.08,Siemens Energy Services,CR411563,One Leisure St Ives,Electricity,420
http://statistics.data.gov.uk/id/local-authority/12UE,Huntingdonshire District Council,03/11/2016,198669,289,5,1440,2 Ton Productions,CR410213,One Leisure St Ives,Entertainments Inc Cable Tv,744
http://statistics.data.gov.uk/id/local-authority/12UE,Huntingdonshire District Council,17/11/2016,199530,293,5,745.5,2 Ton Productions,CR410213,One Leisure St Ives,Entertainments Inc Cable Tv,744
http://statistics.data.gov.uk/id/local-authority/12UE,Huntingdonshire District Council,03/11/2016,198707,271016,5,1747.2,Acorah Productions,CR424070,One Leisure St Ives,Entertainments Inc Cable Tv,744
http://statistics.data.gov.uk/id/local-authority/12UE,Huntingdonshire District Council,10/11/2016,197878,14TH OCT 16,5,2000,Ballet Cymru,CR424031,One Leisure St Ives,Entertainments Inc Cable Tv,744
http://statistics.data.gov.uk/id/local-authority/12UE,Huntingdonshire District Council,24/11/2016,199838,41998,5,300,Dings Entertainment,CR412228,One Leisure St Ives,Entertainments Inc Cable Tv,744
http://statistics.data.gov.uk/id/local-authority/12UE,Huntingdonshire District Council,10/11/2016,199114,42204,5,300,Dings Entertainment,CR412228,One Leisure St Ives,Entertainments Inc Cable Tv,744
http://statistics.data.gov.uk/id/local-authority/12UE,Huntingdonshire District Council,24/11/2016,199837,42296,5,300,Dings Entertainment,CR412228,One Leisure St Ives,Entertainments Inc Cable Tv,744
http://statistics.data.gov.uk/id/local-authority/12UE,Huntingdonshire District Council,17/11/2016,199655,53146,5,5964,Off The Kerb Productions,CR423529,One Leisure St Ives,Entertainments Inc Cable Tv,744
http://statistics.data.gov.uk/id/local-authority/12UE,Huntingdonshire District Council,24/11/2016,199554,9698,5,237.12,Roger Wilson Electronics,CR028041,One Leisure St Ives,Entertainments Inc Cable Tv,744
http://statistics.data.gov.uk/id/local-authority/12UE,Huntingdonshire District Council,03/11/2016,198625,8312,5,1280,Starlite Roadshow,CR024127,One Leisure St Ives,Entertainments Inc Cable Tv,744
http://statistics.data.gov.uk/id/local-authority/12UE,Huntingdonshire District Council,24/11/2016,199527,8314,5,250,Starlite Roadshow,CR024127,One Leisure St Ives,Entertainments Inc Cable Tv,744
http://statistics.data.gov.uk/id/local-authority/12UE,Huntingdonshire District Council,24/11/2016,199885,8315,5,250,Starlite Roadshow,CR024127,One Leisure St Ives,Entertainments Inc Cable Tv,744
http://statistics.data.gov.uk/id/local-authority/12UE,Huntingdonshire District Council,17/11/2016,199307,IN19029,5,1291.2,Airquee Ltd,CR416900,One Leisure St Ives,Equipment,500
http://statistics.data.gov.uk/id/local-authority/12UE,Huntingdonshire District Council,10/11/2016,198626,9684,5,194.4,Roger Wilson Electronics,CR028041,One Leisure St Ives,Equipment,500
http://statistics.data.gov.uk/id/local-authority/12UE,Huntingdonshire District Council,24/11/2016,198339,18111,5,1622.71,Warboys Services Ltd,CR000841,One Leisure St Ives,Equipment,500
http://statistics.data.gov.uk/id/local-authority/12UE,Huntingdonshire District Council,24/11/2016,198165,77684,5,2052,Gladstone Mrm,CR405717,One Leisure St Ives,Equipment Hire,507
http://statistics.data.gov.uk/id/local-authority/12UE,Huntingdonshire District Council,24/11/2016,199527,8314,5,90,Starlite Roadshow,CR024127,One Leisure St Ives,Equipment Hire,507
http://statistics.data.gov.uk/id/local-authority/12UE,Huntingdonshire District Council,24/11/2016,199524,88778,5,442.49,Harry Dalby Engineering Ltd,CR455770,One Leisure St Ives,Equipment Maintenance,511
http://statistics.data.gov.uk/id/local-authority/12UE,Huntingdonshire District Council,10/11/2016,198729,INV001572,5,1250,Lynx Bowling Services,CR455532,One Leisure St Ives,Equipment Maintenance,511
http://statistics.data.gov.uk/id/local-authority/12UE,Huntingdonshire District Council,03/11/2016,198180,16011593,5,1512.6,Technogym Uk Ltd,CR033037,One Leisure St Ives,Equipment Maintenance,511
http://statistics.data.gov.uk/id/local-authority/12UE,Huntingdonshire District Council,03/11/2016,198558,16011864,5,3524.83,Technogym Uk Ltd,CR033037,One Leisure St Ives,Equipment Maintenance,511
http://statistics.data.gov.uk/id/local-authority/12UE,Huntingdonshire District Council,03/11/2016,198361,90147028,5,730.8,G4s Secure Solutions (Uk) Ltd,CR454030,One Leisure St Ives,Fire & Security,450
http://statistics.data.gov.uk/id/local-authority/12UE,Huntingdonshire District Council,03/11/2016,198362,90147121,5,730.8,G4s Secure Solutions (Uk) Ltd,CR454030,One Leisure St Ives,Fire & Security,450
http://statistics.data.gov.uk/id/local-authority/12UE,Huntingdonshire District Council,17/11/2016,199638,12489089510,5,418.03,E-On Energy,CR416430,One Leisure St Ives,Gas,421
http://statistics.data.gov.uk/id/local-authority/12UE,Huntingdonshire District Council,17/11/2016,199634,12489090950,5,3989.44,E-On Energy,CR416430,One Leisure St Ives,Gas,421
http://statistics.data.gov.uk/id/local-authority/12UE,Huntingdonshire District Council,17/11/2016,198670,CD970426562,5,902.4,Sherriff Amenity Services,CR416316,One Leisure St Ives,Grounds Mtce Contractors,351
http://statistics.data.gov.uk/id/local-authority/12UE,Huntingdonshire District Council,10/11/2016,198383,48706,5,648,Technical Surfaces Ltd,CR031941,One Leisure St Ives,Grounds Mtce Contractors,351
http://statistics.data.gov.uk/id/local-authority/12UE,Huntingdonshire District Council,03/11/2016,198006,21382,,585.75,Show & Event Security,CR422363,One Leisure St Ives,Hired Staff,100
http://statistics.data.gov.uk/id/local-authority/12UE,Huntingdonshire District Council,03/11/2016,198554,21424,,471,Show & Event Security,CR422363,One Leisure St Ives,Hired Staff,100
http://statistics.data.gov.uk/id/local-authority/12UE,Huntingdonshire District Council,17/11/2016,197820,SIN043336,5,65,Iql Uk Ltd,CR415623,One Leisure St Ives,Licences,730
http://statistics.data.gov.uk/id/local-authority/12UE,Huntingdonshire District Council,03/11/2016,197205,SIV144642,5,297.54,Les Mills Uk,CR025826,One Leisure St Ives,Licences,730
http://statistics.data.gov.uk/id/local-authority/12UE,Huntingdonshire District Council,24/11/2016,199018,SIV149939,5,297.54,Les Mills Uk,CR025826,One Leisure St Ives,Licences,730
http://statistics.data.gov.uk/id/local-authority/12UE,Huntingdonshire District Council,03/11/2016,198668,INV-0033,5,125,Wamo Sports Ltd,CR423559,One Leisure St Ives,Licences,730
http://statistics.data.gov.uk/id/local-authority/12UE,Huntingdonshire District Council,03/11/2016,198596,2102763011,5,53.9,Booker Cash And Carry,CR027611,One Leisure St Ives,Materials,550
http://statistics.data.gov.uk/id/local-authority/12UE,Huntingdonshire District Council,03/11/2016,198630,2102775319,5,150.35,Booker Cash And Carry,CR027611,One Leisure St Ives,Materials,550
http://statistics.data.gov.uk/id/local-authority/12UE,Huntingdonshire District Council,03/11/2016,198595,2102786407,5,36.93,Booker Cash And Carry,CR027611,One Leisure St Ives,Materials,550
http://statistics.data.gov.uk/id/local-authority/12UE,Huntingdonshire District Council,24/11/2016,199003,2102800846,5,136.26,Booker Cash And Carry,CR027611,One Leisure St Ives,Materials,550
http://statistics.data.gov.uk/id/local-authority/12UE,Huntingdonshire District Council,24/11/2016,199921,2102811638,5,58.74,Booker Cash And Carry,CR027611,One Leisure St Ives,Materials,550
http://statistics.data.gov.uk/id/local-authority/12UE,Huntingdonshire District Council,03/11/2016,197823,77476,5,"1,446.00",Gladstone Mrm,CR405717,One Leisure St Ives,Materials,550
http://statistics.data.gov.uk/id/local-authority/12UE,Huntingdonshire District Council,17/11/2016,198236,INV064263,5,102.79,Slush Puppie Ltd,CR455958,One Leisure St Ives,Materials,550
http://statistics.data.gov.uk/id/local-authority/12UE,Huntingdonshire District Council,03/11/2016,198247,395364,5,271.86,South Lincs Food Service,CR033415,One Leisure St Ives,Materials,550
http://statistics.data.gov.uk/id/local-authority/12UE,Huntingdonshire District Council,17/11/2016,198243,92476860,5,513.85,Speedo International Limited,CR41427,One Leisure St Ives,Materials For Resale,570
http://statistics.data.gov.uk/id/local-authority/12UE,Huntingdonshire District Council,24/11/2016,193175,1027294,5,993.24,Taylor Made Designs,CR417271,One Leisure St Ives,Protective Clothing & Uniforms,163
http://statistics.data.gov.uk/id/local-authority/12UE,Huntingdonshire District Council,03/11/2016,197601,1030477,5,670.68,Taylor Made Designs,CR417271,One Leisure St Ives,Protective Clothing & Uniforms,163
http://statistics.data.gov.uk/id/local-authority/12UE,Huntingdonshire District Council,24/11/2016,198165,77684,5,6130.8,Gladstone Mrm,CR405717,One Leisure St Ives,Software,206
http://statistics.data.gov.uk/id/local-authority/12UE,Huntingdonshire District Council,24/11/2016,199218,151519,5,180,Inn-Dispensable Business Services Ltd,CR479156,One Leisure St Ives,Training,130
http://statistics.data.gov.uk/id/local-authority/12UE,Huntingdonshire District Council,10/11/2016,197638,10311931,5,309.17,Lucozade Ribena Suntory Ltd,CR422660,One Leisure St Ives,Vending Materials,560
http://statistics.data.gov.uk/id/local-authority/12UE,Huntingdonshire District Council,17/11/2016,199088,0010299024/9013,5,328.94,Lucozade Ribena Suntory Ltd,CR422660,One Leisure St Ives,Vending Materials,560
http://statistics.data.gov.uk/id/local-authority/12UE,Huntingdonshire District Council,03/11/2016,198586,74017,5,298,Snackline Direct Ltd,CR478090,One Leisure St Ives,Vending Materials,560
http://statistics.data.gov.uk/id/local-authority/12UE,Huntingdonshire District Council,24/11/2016,198698,SBO1049473,5,767.52,Veolia Es Uk Ltd,CR478889,One Leisure St Ives,Waste Disposal,763
http://statistics.data.gov.uk/id/local-authority/12UE,Huntingdonshire District Council,17/11/2016,199451,126870567,5,6280.97,Anglian Water,CR000071,One Leisure St Ives,Water & Sewerage,432
http://statistics.data.gov.uk/id/local-authority/12UE,Huntingdonshire District Council,03/11/2016,197202,168061,5,120,Lead Forensics,CR423143,One Leisure St Neots,Advertising/Promoting Services,255
http://statistics.data.gov.uk/id/local-authority/12UE,Huntingdonshire District Council,03/11/2016,197560,26886,5,133.8,Pro-Ad Ltd,CR453959,One Leisure St Neots,Advertising/Promoting Services,255
http://statistics.data.gov.uk/id/local-authority/12UE,Huntingdonshire District Council,03/11/2016,198245,30613,5,2051.06,Hi-Spec Facilities Services Plc,CR423413,One Leisure St Neots,Building Cleaning,440
http://statistics.data.gov.uk/id/local-authority/12UE,Huntingdonshire District Council,03/11/2016,198208,30814,5,2051.06,Hi-Spec Facilities Services Plc,CR423413,One Leisure St Neots,Building Cleaning,440
http://statistics.data.gov.uk/id/local-authority/12UE,Huntingdonshire District Council,24/11/2016,198369,426817,5,2022,Heasell Electromechanical Services Ltd,CR422407,One Leisure St Neots,Building Mtce,303
http://statistics.data.gov.uk/id/local-authority/12UE,Huntingdonshire District Council,10/11/2016,198140,79675,5,559.98,Jsa Leisure Ltd,CR40187,One Leisure St Neots,Building Mtce,303
http://statistics.data.gov.uk/id/local-authority/12UE,Huntingdonshire District Council,10/11/2016,197894,INV-0260,5,1098,St Neots Fencing Company,CR478488,One Leisure St Neots,Building Mtce,303
http://statistics.data.gov.uk/id/local-authority/12UE,Huntingdonshire District Council,24/11/2016,199528,14807,5,435.24,Jade Security Services Ltd,CR422256,One Leisure St Neots,Cash Collection,702
http://statistics.data.gov.uk/id/local-authority/12UE,Huntingdonshire District Council,10/11/2016,197826,38SI 3834448,5,711.14,Brenntag Uk Ltd,CR015017,One Leisure St Neots,Chemicals,551
http://statistics.data.gov.uk/id/local-authority/12UE,Huntingdonshire District Council,17/11/2016,199436,65914,5,9048.78,Haven Power Ltd,CR455940,One Leisure St Neots,Electricity,420
http://statistics.data.gov.uk/id/local-authority/12UE,Huntingdonshire District Council,24/11/2016,198557,1127389850,5,355.44,Konica Minolta,CR478866,One Leisure St Neots,Equipment,500
http://statistics.data.gov.uk/id/local-authority/12UE,Huntingdonshire District Council,24/11/2016,198165,77684,5,684,Gladstone Mrm,CR405717,One Leisure St Neots,Equipment Hire,507
http://statistics.data.gov.uk/id/local-authority/12UE,Huntingdonshire District Council,03/11/2016,198725,397,5,1231.2,Country Leisure Fibreglass Ltd,CR423162,One Leisure St Neots,Equipment Maintenance,511
http://statistics.data.gov.uk/id/local-authority/12UE,Huntingdonshire District Council,17/11/2016,198240,347467,5,294.01,Thurlow Nunn Standen Ltd,CR001534,One Leisure St Neots,Equipment Maintenance,511
http://statistics.data.gov.uk/id/local-authority/12UE,Huntingdonshire District Council,17/11/2016,199619,12489088380,5,3101.22,E-On Energy,CR416430,One Leisure St Neots,Gas,421
http://statistics.data.gov.uk/id/local-authority/12UE,Huntingdonshire District Council,10/11/2016,197923,48629,5,420,Technical Surfaces Ltd,CR031941,One Leisure St Neots,Grounds Mtce Contractors,351
http://statistics.data.gov.uk/id/local-authority/12UE,Huntingdonshire District Council,17/11/2016,197820,SIN043336,5,65,Iql Uk Ltd,CR415623,One Leisure St Neots,Licences,730
http://statistics.data.gov.uk/id/local-authority/12UE,Huntingdonshire District Council,03/11/2016,197892,400869,5,331,Mplc,CR411190,One Leisure St Neots,Licences,730
http://statistics.data.gov.uk/id/local-authority/12UE,Huntingdonshire District Council,03/11/2016,198668,INV-0033,5,125,Wamo Sports Ltd,CR423559,One Leisure St Neots,Licences,730
http://statistics.data.gov.uk/id/local-authority/12UE,Huntingdonshire District Council,03/11/2016,197823,77476,5,"1,446.00",Gladstone Mrm,CR405717,One Leisure St Neots,Materials,550
http://statistics.data.gov.uk/id/local-authority/12UE,Huntingdonshire District Council,10/11/2016,199031,SI364614-1,5,582,Rlss Uk Enterprises Ltd - Lifesavers Direct,CR401615,One Leisure St Neots,Materials,550
http://statistics.data.gov.uk/id/local-authority/12UE,Huntingdonshire District Council,24/11/2016,193175,1027294,5,500.22,Taylor Made Designs,CR417271,One Leisure St Neots,Protective Clothing & Uniforms,163
http://statistics.data.gov.uk/id/local-authority/12UE,Huntingdonshire District Council,03/11/2016,197359,1030428,5,1998,Taylor Made Designs,CR417271,One Leisure St Neots,Protective Clothing & Uniforms,163
http://statistics.data.gov.uk/id/local-authority/12UE,Huntingdonshire District Council,03/11/2016,198211,600012975,5,432,Edf Energy Customer Field Services,CR477611,One Leisure St Neots,Service Charges,412
http://statistics.data.gov.uk/id/local-authority/12UE,Huntingdonshire District Council,24/11/2016,198165,77684,5,"2,829.60",Gladstone Mrm,CR405717,One Leisure St Neots,Software,206
http://statistics.data.gov.uk/id/local-authority/12UE,Huntingdonshire District Council,24/11/2016,199218,151519,5,90,Inn-Dispensable Business Services Ltd,CR479156,One Leisure St Neots,Training,130
http://statistics.data.gov.uk/id/local-authority/12UE,Huntingdonshire District Council,24/11/2016,198703,SBO1049475,5,320.35,Veolia Es Uk Ltd,CR478889,One Leisure St Neots,Waste Disposal,763
http://statistics.data.gov.uk/id/local-authority/12UE,Huntingdonshire District Council,10/11/2016,198965,123913345,5,918.75,Anglian Water,CR000071,One Leisure St Neots,Water & Sewerage,432
http://statistics.data.gov.uk/id/local-authority/12UE,Huntingdonshire District Council,17/11/2016,199452,124032665,5,516.16,Anglian Water,CR000071,One Leisure St Neots,Water & Sewerage,432
http://statistics.data.gov.uk/id/local-authority/12UE,Huntingdonshire District Council,10/11/2016,198609,126873231,5,6266.36,Anglian Water,CR000071,One Leisure St Neots,Water & Sewerage,432
http://statistics.data.gov.uk/id/local-authority/12UE,Huntingdonshire District Council,03/11/2016,198772,18990,5,473.4,Fenland Leisure Products Ltd,CR478560,Parks & Open Spaces,Equipment,500
http://statistics.data.gov.uk/id/local-authority/12UE,Huntingdonshire District Council,10/11/2016,198954,SIN018990,5,473.4,Fenland Leisure Products Ltd,CR478560,Parks & Open Spaces,Playground Equipment,360
http://statistics.data.gov.uk/id/local-authority/12UE,Huntingdonshire District Council,10/11/2016,198382,44825,5,1433.7,Soft Surfaces,CR415861,Parks & Open Spaces,Playground Equipment,360
http://statistics.data.gov.uk/id/local-authority/12UE,Huntingdonshire District Council,10/11/2016,198380,CD200018448,5,162.05,Integrated Water Services Ltd,CR452140,Parks & Open Spaces,Water & Sewerage,432
http://statistics.data.gov.uk/id/local-authority/12UE,Huntingdonshire District Council,24/11/2016,199259,CD200023288,5,162.05,Integrated Water Services Ltd,CR452140,Parks & Open Spaces,Water & Sewerage,432
http://statistics.data.gov.uk/id/local-authority/12UE,Huntingdonshire District Council,03/11/2016,198245,30613,5,3778.27,Hi-Spec Facilities Services Plc,CR423413,Pathfinder House Site,Building Cleaning,440
http://statistics.data.gov.uk/id/local-authority/12UE,Huntingdonshire District Council,03/11/2016,198208,30814,5,3778.27,Hi-Spec Facilities Services Plc,CR423413,Pathfinder House Site,Building Cleaning,440
http://statistics.data.gov.uk/id/local-authority/12UE,Huntingdonshire District Council,24/11/2016,198977,23061,5,838.66,B. S. Graves Electrical Ltd,CR000363,Pathfinder House Site,Building Mtce,303
http://statistics.data.gov.uk/id/local-authority/12UE,Huntingdonshire District Council,24/11/2016,198983,42269,5,342,Dal-Rod Uk Ltd,CR002782,Pathfinder House Site,Building Mtce,303
http://statistics.data.gov.uk/id/local-authority/12UE,Huntingdonshire District Council,24/11/2016,198985,28649,5,671,Hygiene Solutions,CR477443,Pathfinder House Site,Building Mtce,303
http://statistics.data.gov.uk/id/local-authority/12UE,Huntingdonshire District Council,17/11/2016,199683,1020446,5,841.58,Brookes,CR422866,Pathfinder House Site,Catering,710
http://statistics.data.gov.uk/id/local-authority/12UE,Huntingdonshire District Council,17/11/2016,198839,60399,5,761.9,Maskearaid Ltd,CR033423,Pathfinder House Site,Cleaning Materials,443
http://statistics.data.gov.uk/id/local-authority/12UE,Huntingdonshire District Council,17/11/2016,199440,65912,5,9253.92,Haven Power Ltd,CR455940,Pathfinder House Site,Electricity,420
http://statistics.data.gov.uk/id/local-authority/12UE,Huntingdonshire District Council,10/11/2016,198219,206245,5,800.34,Digital Id Limited,CR453985,Pathfinder House Site,Equipment,500
http://statistics.data.gov.uk/id/local-authority/12UE,Huntingdonshire District Council,17/11/2016,199633,13313569100,5,998.02,E-On Energy,CR416430,Pathfinder House Site,Gas,421
http://statistics.data.gov.uk/id/local-authority/12UE,Huntingdonshire District Council,24/11/2016,198982,16/0554,5,375.6,Fire And Safety Solutions Ltd,CR479928,Pathfinder House Site,Plant & Equipment Maintenance,380
http://statistics.data.gov.uk/id/local-authority/12UE,Huntingdonshire District Council,03/11/2016,198225,3086048,5,3102,First In Service Ltd,CR422285,Pathfinder House Site,Plant & Equipment Maintenance,380
http://statistics.data.gov.uk/id/local-authority/12UE,Huntingdonshire District Council,03/11/2016,197588,113103673,5,1395,Kone Lifts Ltd,CR000483,Pathfinder House Site,Plant & Equipment Maintenance,380
http://statistics.data.gov.uk/id/local-authority/12UE,Huntingdonshire District Council,10/11/2016,198380,CD200018448,5,73.5,Integrated Water Services Ltd,CR452140,Pathfinder House Site,Water & Sewerage,432
http://statistics.data.gov.uk/id/local-authority/12UE,Huntingdonshire District Council,24/11/2016,199259,CD200023288,5,73.5,Integrated Water Services Ltd,CR452140,Pathfinder House Site,Water & Sewerage,432
http://statistics.data.gov.uk/id/local-authority/12UE,Huntingdonshire District Council,24/11/2016,199170,50077417,5,2400,Haymarket Media Group Ltd,CR479500,Planning M U'S,Recruitment Costs,120
http://statistics.data.gov.uk/id/local-authority/12UE,Huntingdonshire District Council,24/11/2016,199490,9193349,6,3807,East Of England Lga,CR422620,Printing External Work,Consultants,711
http://statistics.data.gov.uk/id/local-authority/12UE,Huntingdonshire District Council,03/11/2016,198345,10701271,5,"7,800.00",Cambridgeshire County Council,CR006678,Project Contributions,Contribution (Paid Out),810
http://statistics.data.gov.uk/id/local-authority/12UE,Huntingdonshire District Council,03/11/2016,197394,28496/5106,5,3734.4,J Breheny Contractors Ltd,CR000314,Property Development And Mgt,Consultants,711
http://statistics.data.gov.uk/id/local-authority/12UE,Huntingdonshire District Council,03/11/2016,198213,57488,5,1174.99,Beebys Limited,CR415822,Public Conveniences,Building Cleaning,440
http://statistics.data.gov.uk/id/local-authority/12UE,Huntingdonshire District Council,03/11/2016,198313,102048,5,126,Barton Petroleum,CR409205,Recycling,Diesel,615
http://statistics.data.gov.uk/id/local-authority/12UE,Huntingdonshire District Council,03/11/2016,197942,IN0550614,5,1616.45,Staffline Group,CR416827,Recycling,Hired Staff,100
http://statistics.data.gov.uk/id/local-authority/12UE,Huntingdonshire District Council,24/11/2016,199242,IN0552893,5,774.48,Staffline Group,CR416827,Recycling,Hired Staff,100
http://statistics.data.gov.uk/id/local-authority/12UE,Huntingdonshire District Council,24/11/2016,199243,IN0554054,5,"2,124.58",Staffline Group,CR416827,Recycling,Hired Staff,100
http://statistics.data.gov.uk/id/local-authority/12UE,Huntingdonshire District Council,24/11/2016,199244,IN0555993,5,"1,576.10",Staffline Group,CR416827,Recycling,Hired Staff,100
http://statistics.data.gov.uk/id/local-authority/12UE,Huntingdonshire District Council,10/11/2016,198209,93851,5,541.97,Bandvulc Truck Tyres,CR406810,Recycling,Tyres,630
http://statistics.data.gov.uk/id/local-authority/12UE,Huntingdonshire District Council,24/11/2016,199895,95074,5,1352.28,Bandvulc Truck Tyres,CR406810,Recycling,Tyres,630
http://statistics.data.gov.uk/id/local-authority/12UE,Huntingdonshire District Council,03/11/2016,197963,268898I,5,186.59,A C Commercials,CR000141,Recycling,Vehicle Oil & Lubricants,626
http://statistics.data.gov.uk/id/local-authority/12UE,Huntingdonshire District Council,24/11/2016,199118,DE10991284,5,459.53,Dennis Eagle Ltd,CR000200,Recycling,Vehicle Parts & Fittings,625
http://statistics.data.gov.uk/id/local-authority/12UE,Huntingdonshire District Council,24/11/2016,199902,DE10995293,5,86.78,Dennis Eagle Ltd,CR000200,Recycling,Vehicle Parts & Fittings,625
http://statistics.data.gov.uk/id/local-authority/12UE,Huntingdonshire District Council,24/11/2016,199223,96333639,5,219.91,Terberg Matec Uk Ltd,CR402183,Recycling,Vehicle Parts & Fittings,625
http://statistics.data.gov.uk/id/local-authority/12UE,Huntingdonshire District Council,17/11/2016,604427,106 FUNDS TRANS,1,22000,Huntingdon Town Council,CR002471,Recycling Equipment Capital,Contribution (Paid Out),810
http://statistics.data.gov.uk/id/local-authority/12UE,Huntingdonshire District Council,24/11/2016,199627,INV000003928,5,17465.26,Egbert H Taylor And Co Ltd,CR004818,Recycling Equipment Capital,Recycling Bins,525
http://statistics.data.gov.uk/id/local-authority/12UE,Huntingdonshire District Council,24/11/2016,199228,SI30828,5,16382.16,Ssi Schaefer Ltd,CR407190,Recycling Equipment Capital,Recycling Bins,525
http://statistics.data.gov.uk/id/local-authority/12UE,Huntingdonshire District Council,24/11/2016,199270,681598,5,157.2,Callcredit Ltd,CR455548,Revenue Services Mus,Enquiries,723
http://statistics.data.gov.uk/id/local-authority/12UE,Huntingdonshire District Council,17/11/2016,604426,106 FUNDS,1,193498,Huntingdon Town Council,CR002471,S106 Agreements,Contribution (Paid Out),810
http://statistics.data.gov.uk/id/local-authority/12UE,Huntingdonshire District Council,17/11/2016,604427,106 FUNDS TRANS,1,25000,Huntingdon Town Council,CR002471,S106 Agreements,Contribution (Paid Out),810
http://statistics.data.gov.uk/id/local-authority/12UE,Huntingdonshire District Council,03/11/2016,197951,IN0550617,5,2666.4,Staffline Group,CR416827,Street Cleaning,Hired Staff,100
http://statistics.data.gov.uk/id/local-authority/12UE,Huntingdonshire District Council,10/11/2016,199248,IN0552896,5,2871.3,Staffline Group,CR416827,Street Cleaning,Hired Staff,100
http://statistics.data.gov.uk/id/local-authority/12UE,Huntingdonshire District Council,17/11/2016,199249,IN0554057,5,"2,719.46",Staffline Group,CR416827,Street Cleaning,Hired Staff,100
http://statistics.data.gov.uk/id/local-authority/12UE,Huntingdonshire District Council,24/11/2016,199250,IN0555997,5,"2,070.56",Staffline Group,CR416827,Street Cleaning,Hired Staff,100
http://statistics.data.gov.uk/id/local-authority/12UE,Huntingdonshire District Council,17/11/2016,198198,718206,5,20857.32,Glasdon Uk Ltd,CR002827,Street Cleaning,Litter Bins,520
http://statistics.data.gov.uk/id/local-authority/12UE,Huntingdonshire District Council,17/11/2016,198838,13877,5,778.6,Tensid Uk,CR406110,Street Cleaning,Materials,550
http://statistics.data.gov.uk/id/local-authority/12UE,Huntingdonshire District Council,24/11/2016,199117,7001,,11766,Dobson Uk Llp,CR423450,Street Cleaning,Subcontractors,777
http://statistics.data.gov.uk/id/local-authority/12UE,Huntingdonshire District Council,10/11/2016,198209,93851,5,516.62,Bandvulc Truck Tyres,CR406810,Street Cleaning,Tyres,630
http://statistics.data.gov.uk/id/local-authority/12UE,Huntingdonshire District Council,10/11/2016,198836,13852,5,410.78,Tensid Uk,CR406110,Street Cleaning,Vehicle Maintenance External,619
http://statistics.data.gov.uk/id/local-authority/12UE,Huntingdonshire District Council,03/11/2016,197963,268898I,5,310.99,A C Commercials,CR000141,Street Cleaning,Vehicle Oil & Lubricants,626
http://statistics.data.gov.uk/id/local-authority/12UE,Huntingdonshire District Council,10/11/2016,198315,60221365,5,1007.36,Aebi Schmidt,CR025706,Street Cleaning,Vehicle Parts & Fittings,625
http://statistics.data.gov.uk/id/local-authority/12UE,Huntingdonshire District Council,17/11/2016,198952,61439915,5,603.4,Johnston Engineering Ltd,CR029831,Street Cleaning,Vehicle Parts & Fittings,625
http://statistics.data.gov.uk/id/local-authority/12UE,Huntingdonshire District Council,03/11/2016,198310,65249300,5,903.66,Johnston Engineering Ltd,CR029831,Street Cleaning,Vehicle Parts & Fittings,625
http://statistics.data.gov.uk/id/local-authority/12UE,Huntingdonshire District Council,24/11/2016,199234,1907,5,1200,Webaspx Ltd,CR455661,Trade Refuse,Software,206
http://statistics.data.gov.uk/id/local-authority/12UE,Huntingdonshire District Council,10/11/2016,199178,10700180,5,3432.83,Cambridgeshire County Council,CR006678,Trade Refuse,Waste Disposal,763
http://statistics.data.gov.uk/id/local-authority/12UE,Huntingdonshire District Council,24/11/2016,199607,291583,5,196407.6,Dennis Eagle Ltd,CR000200,Vehicles & Plant Capital,Vehicles Purchased,600
http://statistics.data.gov.uk/id/local-authority/12UE,Huntingdonshire District Council,24/11/2016,199608,291584,5,196407.6,Dennis Eagle Ltd,CR000200,Vehicles & Plant Capital,Vehicles Purchased,600
http://statistics.data.gov.uk/id/local-authority/12UE,Huntingdonshire District Council,24/11/2016,199609,291585,5,196407.6,Dennis Eagle Ltd,CR000200,Vehicles & Plant Capital,Vehicles Purchased,600
http://statistics.data.gov.uk/id/local-authority/12UE,Huntingdonshire District Council,24/11/2016,199612,D96546,5,-196407.6,Dennis Eagle Ltd,CR000200,Vehicles & Plant Capital,Vehicles Purchased,600
http://statistics.data.gov.uk/id/local-authority/12UE,Huntingdonshire District Council,24/11/2016,199610,D96547,5,-196407.6,Dennis Eagle Ltd,CR000200,Vehicles & Plant Capital,Vehicles Purchased,600
http://statistics.data.gov.uk/id/local-authority/12UE,Huntingdonshire District Council,24/11/2016,199611,D96548,5,-196407.6,Dennis Eagle Ltd,CR000200,Vehicles & Plant Capital,Vehicles Purchased,600
http://statistics.data.gov.uk/id/local-authority/12UE,Huntingdonshire District Council,24/11/2016,199613,D96550,5,196407.6,Dennis Eagle Ltd,CR000200,Vehicles & Plant Capital,Vehicles Purchased,600
http://statistics.data.gov.uk/id/local-authority/12UE,Huntingdonshire District Council,24/11/2016,199614,D96551,5,196407.6,Dennis Eagle Ltd,CR000200,Vehicles & Plant Capital,Vehicles Purchased,600
http://statistics.data.gov.uk/id/local-authority/12UE,Huntingdonshire District Council,24/11/2016,199615,D96552,5,196407.6,Dennis Eagle Ltd,CR000200,Vehicles & Plant Capital,Vehicles Purchased,600
http://statistics.data.gov.uk/id/local-authority/12UE,Huntingdonshire District Council,10/11/2016,197932,370270,5,156.6,Smi Group,CR423139,Watercourses,Protective Clothing & Uniforms,163
http://statistics.data.gov.uk/id/local-authority/12UE,Huntingdonshire District Council,03/11/2016,197393,28495/5106,5,6133.32,J Breheny Contractors Ltd,CR000314,Watercourses,Sitework,359
